Cogmind - Beta 15 @@@ ROGUE MODE // 2025.05.10 @ 19:47:51 // Winter2019/RPGLIKE Player: DeepestRoots Result: Escaped! Performance ------------- Evolutions (9) 4500 Regions Visited (31) 6200 Robots Destroyed (488) 2440 Value Destroyed (22867) 22867 Prototype IDs (134) 2680 Alien Tech Used (2) 400 Bonus (19440) 19440 TOTAL SCORE: 58527 Bonus ------- High Alert Combat Kills 1314 Follower Combat Kills 1891 Network Hubs Disabled 200 Registered with UFD 300 Met Optimus in HQ 500 Met Zhirov 300 Met Warlord at Base 500 MAIN.C Attacked Warlord 500 Warlord Defense Kills 4010 Built Enhanced Grunts 300 A7 Reached Mainframe 300 Met R17 at Cetus 500 Met R17 at Research 2000 Scanned by Researcher 500 Acquired SGEMP 2000 Delivered SGEMP 2000 Win 3000 Friendly Fire -675 Cogmind --------- Core Integrity 191/1300 Matter 292/300 Energy 1240/1400 System Corruption 0% Temperature Cool (6) Movement Walking (105) Location To Epsilon Eridani Parts ------- > --- POWER (2) -------- Cooled Fission Core Improved Quantum Reactor > --- PROPULSION (4) --- Thunder Leg Advanced VSS Leg Biometal Leg Enhanced Biometal Leg > --- UTILITY (14) ----- Concept Chromion Battery Advanced Signal Interpreter Improved Salvage Targeting Computer Experimental Targeting Computer Experimental Core Analyzer Advanced Recoil Stabilizer Improved Weapon Cycler Experimental ECM Suite Advanced Reaction Control System Experimental Focal Shield Advanced Force Field Improved Hacking Suite Advanced Hacking Suite Improved System Guard > --- WEAPON (5) ------- Railgun Advanced KE Penetrator Advanced KE Penetrator Multirail Plasma Lance > --- INVENTORY (5) ---- Advanced Energy Well (500) Experimental Terrain Scanner Long-range Tractor Beam Multirail Peak State ------------ > --- POWER ------------ Cooled Fission Core Improved Quantum Reactor > --- PROPULSION ------- Thunder Leg Advanced VSS Leg Biometal Leg Enhanced Biometal Leg > --- UTILITY ---------- Concept Chromion Battery Plexus Tether Advanced Signal Interpreter Experimental Terrain Scanner Improved Salvage Targeting Computer Experimental Targeting Computer Experimental Core Analyzer Advanced Recoil Stabilizer Improved Weapon Cycler Advanced Reaction Control System Advanced Force Field Improved Hacking Suite Advanced Hacking Suite Improved System Guard > --- WEAPON ----------- Railgun Advanced KE Penetrator Advanced KE Penetrator Multirail Plasma Lance > --- INVENTORY -------- Experimental ECM Suite Experimental Focal Shield Long-range Tractor Beam SGEMP Prototype [Rating: 193] Favorites ----------- Power Quantum Reactor Engine Cooled Ion Engine Power Core Cooled Fission Core Reactor Quantum Reactor Propulsion Advanced VSS Leg Leg Advanced VSS Leg Utility Hacking Suite Device Improved Cooling System Storage Advanced Energy Well Processor Improved Salvage Targeting Computer Hackware Hacking Suite Protection Medium Armor Plating Weapon Advanced KE Penetrator Energy Gun Heavy EM Pulse Gun Energy Cannon Compact Ion Cannon Ballistic Gun Advanced KE Penetrator Ballistic Cannon Enhanced Hardcell Cannon Launcher Rocket Launcher Slashing Weapon Power Sword Piercing Weapon Plasma Lance Build | -11 -10 -10 -9 -9 -9 -8 -8 -8 -8 -8 -6 -6 -6 -6 -6 -5 -5 -5 -5 -4 -4 -4 -4 -4 -3 -3 -3 -2 -2 -2 -1 ------- Run | Yrd Mat Min Mat Min Exi Min Mat Sto Rec Scr Fac Ext Cet Arc Hub Fac Upp Upp War Pro Fac Upp Upp Zhi Pro Res Tes Res Qua Frg Acc Slots Evolved 21 | 3 2 . 3 1 . . 2 . 1 . . 1 1 . . 2 1 . . . 1 1 . . . 2 . . . . . Power 1 | . . . . . . . 1 . . . . . . . . . . . . . . . . . . . . . . . . Propulsion 3 | 1 . . 1 . . . . . . . . . . . . . 1 . . . . . . . . . . . . . . Utility 13 | 1 1 . 1 1 . . 1 . 1 . . 1 1 . . 2 . . . . . 1 . . . 2 . . . . . Weapon 4 | 1 1 . 1 . . . . . . . . . . . . . . . . . 1 . . . . . . . . . . Parts Attached 132 | 6 8 . 8 2 . 1 11 7 1 5 6 5 7 . 2 9 3 2 7 1 4 3 4 4 1 11 6 1 1 6 . Power 10 | 1 . . 1 . . . 2 1 . . 1 . 1 . . . . . 1 . . . . . . 1 . 1 . . . Engine 4 | 1 . . 1 . . . 1 1 . . . . . . . . . . . . . . . . . . . . . . . Core 3 | . . . . . . . 1 . . . 1 . . . . . . . 1 . . . . . . . . . . . . Reactor 3 | . . . . . . . . . . . . . 1 . . . . . . . . . . . . 1 . 1 . . . Propulsion 22 | 2 . . 1 . . . 3 . . . 2 1 1 . 1 2 1 . 1 . 1 . 1 1 . . 1 . . 3 . Treads . | . . . . . . . . . . . . . . . . . . . . . . . . . . . . . . . . Leg 22 | 2 . . 1 . . . 3 . . . 2 1 1 . 1 2 1 . 1 . 1 . 1 1 . . 1 . . 3 . Wheel . | . . . . . . . . . . . . . . . . . . . . . . . . . . . . . . . . Hover . | . . . . . . . . . . . . . . . . . . . . . . . . . . . . . . . . Flight . | . . . . . . . . . . . . . . . . . . . . . . . . . . . . . . . . Utility 64 | 1 4 . 2 1 . 1 2 . 1 4 3 4 3 . . 6 1 2 3 1 1 3 2 3 1 9 4 . . 2 . Device 40 | 1 . . . 1 . 1 1 . . 4 2 3 2 . . 4 . 2 1 1 1 3 2 . 1 7 3 . . . . Storage 2 | . . . . . . . . . . . . . . . . . . . . . . . . 1 . . . . . 1 . Processor 10 | . 1 . . . . . 1 . 1 . 1 . . . . 1 . . 2 . . . . . . 2 . . . 1 . Hackware 6 | . . . 1 . . . . . . . . 1 . . . 1 1 . . . . . . 1 . . 1 . . . . Protection 6 | . 3 . 1 . . . . . . . . . 1 . . . . . . . . . . 1 . . . . . . . Artifact . | . . . . . . . . . . . . . . . . . . . . . . . . . . . . . . . . Weapon 36 | 2 4 . 4 1 . . 4 6 . 1 . . 2 . 1 1 1 . 2 . 2 . 1 . . 1 1 . 1 1 . Energy Gun 5 | . . . . . . . 4 . . . . . . . . . . . . . . . . . . . . . . 1 . Energy Cannon 1 | . . . . . . . . 1 . . . . . . . . . . . . . . . . . . . . . . . Ballistic Gun 23 | 2 4 . 4 . . . . 4 . 1 . . 2 . . . 1 . 1 . 2 . 1 . . . 1 . . . . Ballistic Cannon 1 | . . . . . . . . . . . . . . . . . . . . . . . . . . . . . 1 . . Launcher 1 | . . . . 1 . . . . . . . . . . . . . . . . . . . . . . . . . . . Special Weapon . | . . . . . . . . . . . . . . . . . . . . . . . . . . . . . . . . Impact Weapon . | . . . . . . . . . . . . . . . . . . . . . . . . . . . . . . . . Slashing Weapon 4 | . . . . . . . . 1 . . . . . . 1 1 . . . . . . . . . 1 . . . . . Piercing Weapon 1 | . . . . . . . . . . . . . . . . . . . 1 . . . . . . . . . . . . Special Melee Weapon . | . . . . . . . . . . . . . . . . . . . . . . . . . . . . . . . . Unidentified Prototypes 31 | . . . . . . . . 2 . . . . 4 . . . . . 6 . . . . 5 . 5 6 1 . 2 . Parts Lost 1 | . . . . . . . . . . . . . . . . 1 . . . . . . . . . . . . . . . Power . | . . . . . . . . . . . . . . . . . . . . . . . . . . . . . . . . Propulsion . | . . . . . . . . . . . . . . . . . . . . . . . . . . . . . . . . Utility 1 | . . . . . . . . . . . . . . . . 1 . . . . . . . . . . . . . . . Weapon . | . . . . . . . . . . . . . . . . . . . . . . . . . . . . . . . . Highest Loss Streak 1 | . . . . . . . . . . . . . . . . 1 . . . . . . . . . . . . . . . To Critical Strikes . | . . . . . . . . . . . . . . . . . . . . . . . . . . . . . . . . Average Backups 2 | . . 1 . 1 1 1 1 2 2 2 2 3 1 1 1 2 3 2 2 2 2 2 3 3 1 2 2 3 3 3 3 Power . | . . . . . . . . . . . . . . . . . . . . . . . . . . . . . . . . Propulsion . | . . . . . . . . . . . . . . . . . . . . . . . . . . . . . . . . Utility . | . . . . . . . . . . . . 1 . . . . 1 . . . . . 1 1 1 1 2 3 3 3 3 Weapon 1 | . . . . 1 1 1 1 2 2 2 2 2 1 1 1 1 2 1 2 2 2 1 2 2 . . . . . . . Tool/Special . | . . . . . . . . . . . . . . . . . . . . . . . . . . . . . . . . Unused Backups 5 | . . . . . . . 1 . . . . . . . . . 1 . . . . . 1 . . . . . . . 2 Power . | . . . . . . . . . . . . . . . . . . . . . . . . . . . . . . . . Propulsion . | . . . . . . . . . . . . . . . . . . . . . . . . . . . . . . . . Utility 2 | . . . . . . . . . . . . . . . . . 1 . . . . . . . . . . . . . 1 Weapon 3 | . . . . . . . 1 . . . . . . . . . . . . . . . 1 . . . . . . . 1 Tool/Special . | . . . . . . . . . . . . . . . . . . . . . . . . . . . . . . . . Average Slot Usage (%) 99 | . 94 100 99 100 100 99 99 99 100 90 100 100 100 100 100 99 100 100 100 100 100 100 100 99 100 100 100 100 100 99 100 Engine 4 | . 11 11 9 7 7 7 2 12 12 10 11 5 5 5 5 5 4 4 3 . . . . . . . . . . . . Core 2 | . . . . . . . 4 . . . . 5 . . . . . . . 4 4 4 4 4 4 4 4 4 4 4 4 Reactor 2 | . . . . . . . . . . . . . 4 5 5 5 4 4 4 4 4 4 4 4 4 4 4 4 4 4 4 Leg 18 | . 23 22 25 23 23 23 22 20 18 15 18 17 16 16 16 15 16 19 19 19 18 17 17 17 17 16 16 16 16 15 16 Device 21 | . 11 11 9 12 15 14 15 20 18 18 24 17 22 22 22 29 29 28 26 23 22 23 26 21 21 23 24 24 24 23 20 Storage 1 | . . . . . . . . . . . . . . . . . . . . . . . . 2 4 4 4 4 4 4 7 Processor 14 | . 3 11 9 7 7 7 6 6 10 12 12 17 16 16 16 15 14 14 15 19 18 17 17 17 17 18 20 20 20 20 20 Hackware 6 | . . . . 7 7 7 6 6 6 6 6 10 5 5 5 7 9 9 9 9 9 8 8 8 8 8 8 8 8 8 8 Protection 2 | . 7 11 9 7 7 7 6 6 6 3 . . . 5 5 . . . . . . . . . . . . . . . . Energy Gun 1 | . . . . . . . 14 5 . . . . . . . . . . . . . . . . . . . . . . . Ballistic Gun 20 | . 35 33 35 30 30 30 14 19 25 21 22 23 22 22 21 17 17 18 17 16 17 21 19 17 21 17 16 16 16 15 16 Peak Build Rating 193 | 6 13 13 25 26 26 28 38 46 46 57 62 70 101 99 101 112 119 120 137 141 148 151 156 161 160 174 186 188 190 193 191 Average Rating 102 | 4 8 13 20 25 26 27 30 41 45 43 57 68 82 99 100 108 114 118 123 137 145 145 153 158 158 168 177 186 186 187 189 On Entrance 96 | . 6 13 13 25 26 26 28 38 43 46 57 62 69 99 99 101 111 118 119 137 138 148 151 156 160 160 174 185 188 186 190 Naked Turns . | . . . . . . . . . . . . . . . . . . . . . . . . . . . . . . . . Heaviest Build 89 | 8 20 20 27 29 28 28 38 40 39 40 35 35 60 60 60 61 60 63 67 74 80 86 86 88 88 89 89 88 85 86 85 Greatest Support 103 | 20 20 20 33 33 33 33 45 45 45 45 55 55 68 68 76 76 84 84 94 94 94 89 96 101 101 101 103 103 103 103 99 Greatest Overweight (x) 5 | . 3 . 1 . . . . . . 5 . . . . . . . . . . . . 1 . . . . . . 2 . Average Overweight (x) . | . . . . . . . . . . . . . . . . . . . . . . . . . . . . . . . . Largest Inventory Capacity 5 | 1 1 1 1 1 1 1 2 2 2 2 3 3 3 3 3 3 3 3 3 3 3 3 4 4 4 4 5 5 5 5 5 Average Capacity 2 | 1 1 1 1 1 1 1 1 2 2 2 2 3 3 3 3 3 3 3 3 3 3 3 3 4 4 4 4 5 5 5 5 Most Carried 5 | . 1 1 1 1 1 1 2 2 2 2 3 3 3 3 3 3 3 3 3 3 3 3 4 4 4 4 5 5 5 5 4 Average Carried 2 | . . . . 1 1 1 1 2 2 2 2 3 2 2 2 2 2 2 2 2 2 2 3 4 3 3 4 5 5 5 3 Final Capacity 5 | 1 1 1 1 1 1 1 2 2 2 2 3 3 3 3 3 3 3 3 3 3 3 3 4 4 4 4 5 5 5 5 5 Final Carried 5 | . 1 1 1 1 1 1 2 2 2 2 3 3 3 2 3 3 3 3 3 2 3 3 4 4 4 4 5 5 5 5 4 Class Distribution -------------------- 29% | Scavenger-Skirmisher 27% | Scavenger-Assassin 26% | Gunner 5% | Commander-Gunner 4% | Scavenger-Gunner Dominant Class ---------------- Gunner | -10/Materials Gunner | -10/Mines Gunner | -9/Materials Gunner | -9/Mines Gunner | -9/Exiles Gunner | -8/Mines Gunner | -8/Materials Gunner | -8/Storage Gunner | -8/Recycling Commander-Gunner | -8/Scraptown Skirmisher | -6/Factory Scavenger-Skirmisher | -6/Extension Scavenger-Skirmisher | -6/Cetus Scavenger-Skirmisher | -6/Archives Scavenger-Skirmisher | -6/Hub_04(d) Scavenger-Skirmisher | -5/Factory Scavenger-Skirmisher | -5/Upper Caves Scavenger-Skirmisher | -5/Upper Caves Scavenger-Skirmisher | -5/Warlord Scavenger-Skirmisher | -4/Proximity Caves Scavenger-Assassin | -4/Factory Scavenger-Skirmisher | -4/Upper Caves Scavenger-Skirmisher | -4/Upper Caves Scavenger-Assassin | -4/Zhirov Scavenger-Gunner | -3/Proximity Caves Scavenger-Assassin | -3/Research Scavenger-Assassin | -3/Testing Scavenger-Assassin | -2/Research Scavenger-Assassin | -2/Quarantine Scavenger-Assassin | -2/Protoforge Scavenger-Assassin | -1/Access Resources | -11 -10 -10 -9 -9 -9 -8 -8 -8 -8 -8 -6 -6 -6 -6 -6 -5 -5 -5 -5 -4 -4 -4 -4 -4 -3 -3 -3 -2 -2 -2 -1 ----------- Run | Yrd Mat Min Mat Min Exi Min Mat Sto Rec Scr Fac Ext Cet Arc Hub Fac Upp Upp War Pro Fac Upp Upp Zhi Pro Res Tes Res Qua Frg Acc Matter Collected 17909 | 262 317 48 1403 159 . 407 693 570 178 20 860 532 530 . 570 888 556 719 1222 487 433 635 648 100 932 771 1076 333 517 1322 721 Remotely 2838 | . . . . . . . . . . . . . . . . . . . . . . . . . . 621 841 333 517 . 526 Salvage Created 22700 | 26 547 66 1643 36 . 350 1059 1809 215 . 733 628 405 . 736 1494 579 829 749 365 514 951 888 270 1038 979 1884 491 763 1937 716 Parts 1382 | 2 30 8 100 2 . 17 67 90 16 . 41 33 31 8 26 96 27 28 66 26 39 57 35 . 72 50 109 23 79 132 72 Haulers Intercepted 17 | . 2 . 5 . . . 3 2 . . . . . . . . . . . . 1 . . . . 3 1 . . . . Recyclers Shooed 8 | . 1 . 1 . . . 2 . . . . . . . . 1 . . . . 1 . 1 . . . . . 1 . . Parts Field Recycled . | . . . . . . . . . . . . . . . . . . . . . . . . . . . . . . . . Retrieved Matter . | . . . . . . . . . . . . . . . . . . . . . . . . . . . . . . . . Parts Self-Destructed 230 | . . . . . . . . . . . . . . . . . 24 20 . 25 . 57 32 . 72 . . . . . . Prevented 10 | . . . . . . . . . . . . . . . . . . 8 . . . . 2 . . . . . . . . Kills | -11 -10 -10 -9 -9 -9 -8 -8 -8 -8 -8 -6 -6 -6 -6 -6 -5 -5 -5 -5 -4 -4 -4 -4 -4 -3 -3 -3 -2 -2 -2 -1 ------- Run | Yrd Mat Min Mat Min Exi Min Mat Sto Rec Scr Fac Ext Cet Arc Hub Fac Upp Upp War Pro Fac Upp Upp Zhi Pro Res Tes Res Qua Frg Acc Combat Hostiles Destroyed 389 | . 11 3 40 2 . 12 29 26 4 . 12 10 7 2 11 13 11 13 31 12 7 14 16 . 19 11 19 5 14 25 10 Melee 1 | . . . . . . . . . . . . . . . . 1 . . . . . . . . . . . . . . . Guns 342 | . 11 3 40 2 . 12 23 20 4 . 12 7 7 2 11 12 10 9 22 5 5 14 8 . 19 11 19 5 14 25 10 AOE 43 | . . . . . . . 6 3 . . . 3 . . . . 1 4 9 7 2 . 8 . . . . . . . . Classes Destroyed 27 | 1 5 . 4 . . 2 . 1 2 . 1 1 . . . . 1 1 3 1 . . . . . . 3 . . 1 . Worker 17 | . 1 1 2 . . . 2 2 . . 2 . . . . 1 . . . . 2 . . . . . 1 2 . . 1 Builder 17 | . . . . . . . . 3 1 . . . . . 1 4 . . . . 1 . . . . 1 3 1 1 1 . Tunneler 3 | 1 . . . . . . . . 1 . 1 . . . . . . . . . . . . . . . . . . . . Hauler 17 | . 2 . 5 . . . 3 2 . . . . . . . . . . . . 1 . . . . 3 1 . . . . Recycler 4 | . . . . . . . . . 1 . . . . . . 2 . . . . . . . . . 1 . . . . . Minesweeper 4 | . . . . . . . . . . . . . . . . . . 2 . . . . 1 . 1 . . . . . . Mechanic 2 | . . . 1 . . . . 1 . . . . . . . . . . . . . . . . . . . . . . . Operator 7 | . . . 1 . . . . 1 . . . 2 . . 1 1 . . . . . . . . . . . . . 1 . Drone 5 | . . . . . . . . . . . . . . . . . . . . 2 . . . . . . . . . 3 . Watcher 22 | . 3 . 5 . . . 3 2 . . . . . . 1 2 . . . . 1 . . . . 1 1 1 . . 2 Swarmer 83 | . 6 3 11 . . 4 12 . . . . 2 . . 3 . 4 4 2 5 . 1 11 . 3 7 . . 5 . . Grunt 114 | . 5 . 18 2 . 4 8 10 1 . 7 5 2 . 5 3 3 4 10 . . 4 3 . 8 . 5 . 1 3 3 Brawler 16 | . . . . . . 1 2 1 1 . . . . . 1 . 1 3 2 . . 2 . . 1 . . . . 1 . Duelist 9 | . . . 2 . . 1 . 1 . . . . . . 1 . . 1 . 2 . 1 . . . . . . . . . Protector 5 | . . . . . . . . . 1 . . . . . . . . . 4 . . . . . . . . . . . . Researcher 3 | . . . . . . . . . . . . . . . . . . . . . . . . . . . 2 . 1 . . Sentry 49 | . . . 9 . . . 7 12 1 . 1 . . 2 . 3 1 1 . 1 1 2 2 . 1 1 . 2 . 2 . Demolisher 3 | . . . . . . . . . . . . . . . . . . . 3 . . . . . . . . . . . . Specialist 4 | . . . . . . . . . . . . . . . . . . . . . . . . . . . 4 . . . . Hunter 32 | . . . . . . 2 . 2 . . 2 . . . . 5 1 . . 2 . 4 . . 4 2 2 1 . 4 1 Programmer 43 | . . . . . . . . . . . 2 2 . . 1 2 . . 5 . 6 . . . 2 1 6 2 8 4 2 Q-Series 6 | . . . . . . . . . . . . . . . . . . . . . . . . . . . . . . 2 4 Behemoth 3 | . . . . . . . . . . . . 1 . . . . . . 2 . . . . . . . . . . . . Cetus Guard 5 | . . . . . . . . . . . . . 5 . . . . . . . . . . . . . . . . . . Hotshot 6 | . . . . . . . . . . . . . . . . . . . . . . . . . . . . . . 6 . Striker 2 | . . . . . . . . . . . . . . . . . . . 1 . . . . . . . 1 . . . . Executioner 2 | . . . . . . . . . . . . . . . . . . . 2 . . . . . . . . . . . . Alpha 7 1 | . . . . . . . . . . . . . . . . . . . . . . . . . . . 1 . . . . Packrat 1 | . . . . . . . . . . . . . . . . . . . . . . . 1 . . . . . . . . Thug 3 | . . . . . . . . 1 . . . . . . . . . . 2 . . . . . . . . . . . . Mutant 1 | . . . . . . . . . . . . . . . . . 1 . . . . . . . . . . . . . . Best Kill Streak 11 | 1 4 3 6 2 . 4 5 6 2 . 3 3 3 1 5 6 4 5 11 6 5 6 7 . 4 4 5 4 5 4 5 Combat Bots Only 11 | . 4 3 5 2 . 4 5 3 1 . 3 3 3 1 3 2 4 5 11 6 4 6 7 . 4 4 5 1 5 4 5 Max Kills in Single Turn 6 | 1 2 2 2 1 . 3 4 6 2 . 1 2 1 1 2 3 3 2 5 2 2 2 2 . 2 1 3 3 2 2 1 Gunslinging 2 | . 1 1 1 . . 2 . . . . . . . . 1 1 2 . 1 . . 1 1 . 1 . 1 . 1 1 . Exploded 4 | . . . . . . . 4 2 . . . 2 . . . . 1 2 4 2 2 . 2 . . . . . . . . Melee 1 | . . . . . . . . . . . . . . . . 1 . . . . . . . . . . . . . . . Uniques/NPCs Destroyed . | . . . . . . . . . . . . . . . . . . . . . . . . . . . . . . . . Combat | -11 -10 -10 -9 -9 -9 -8 -8 -8 -8 -8 -6 -6 -6 -6 -6 -5 -5 -5 -5 -4 -4 -4 -4 -4 -3 -3 -3 -2 -2 -2 -1 -------- Run | Yrd Mat Min Mat Min Exi Min Mat Sto Rec Scr Fac Ext Cet Arc Hub Fac Upp Upp War Pro Fac Upp Upp Zhi Pro Res Tes Res Qua Frg Acc Hostile Shots Fired 1632 | . 25 7 112 17 . 41 79 59 1 . 66 32 26 7 58 131 24 20 190 43 8 69 24 . 76 18 92 39 63 234 71 Missed 625 | . 5 2 37 2 . 15 22 16 . . 10 7 8 3 23 40 11 12 84 21 6 26 9 . 43 10 39 22 36 82 34 Hits 1007 | . 20 5 75 15 . 26 57 43 1 . 56 25 18 4 35 91 13 8 106 22 2 43 15 . 33 8 53 17 27 152 37 Melee 11 | . . . 3 1 . . 1 1 1 . . . . . . . . . 3 . . . . . . . . . . 1 . Projectile 996 | . 20 5 72 14 . 26 56 42 . . 56 25 18 4 35 91 13 8 103 22 2 43 15 . 33 8 53 17 27 151 37 AOE 6 | . . . . . . . . . . . . . . . . . . . 6 . . . . . . . . . . . . Critical Strikes 40 | . 1 . 1 . . 2 2 3 . . 3 1 3 . 3 3 . . 3 . . . . . . 1 2 . 4 6 2 Part Disruptions 4 | . . . . . . . . . . . . . . . . . . 1 . . . . . . . . . . 1 2 . Damage Taken 14581 | . 230 41 872 213 . 347 789 743 29 . 660 393 473 88 665 1405 183 133 2018 359 18 454 123 . 277 136 497 194 528 2367 346 Core 11388 | . 186 27 601 166 . 256 595 544 23 . 526 322 379 66 506 1129 146 109 1621 282 14 356 97 . 212 106 386 156 419 1877 281 Absorbed by Shields 5958 | . . . . . . . . . . . 198 99 11 . . 475 68 49 627 220 18 386 129 . 288 140 487 201 542 1653 367 Redirected to Core 9866 | . 141 27 568 136 . 246 491 477 23 . 458 248 351 43 400 971 123 82 1404 255 14 312 76 . 193 94 345 121 363 1692 212 Ignored by Resistances 679 | . . . . . . . . . . . . . . . . . . . . . . . . . . . 109 . . 327 243 Regen/Repaired (Parts) 117 | . . . . . . . 117 . . . . . . . . . . . . . . . . . . . . . . . . Core Remaining (%) 72 | 100 . 100 . . . 67 . . . 96 . . . . 63 . . . . 67 . . . . 100 . 100 . . 16 14 Volleys Fired 941 | 2 30 4 83 15 . 19 56 46 12 . 39 28 30 6 29 43 25 44 67 30 19 31 27 . 43 25 54 12 28 70 24 Largest 5 | 2 3 3 4 4 . 4 4 4 4 . 4 4 4 4 4 4 4 4 4 4 5 5 5 . 5 5 4 4 4 4 4 Hottest 185 | 40 60 69 100 100 . 100 185 185 96 . 98 98 108 120 120 120 123 123 128 128 163 163 170 . 170 170 150 150 150 150 150 Shots Fired 3528 | 4 82 12 318 48 . 76 211 172 48 . 156 103 120 24 116 172 84 149 239 83 57 139 99 . 180 117 207 45 104 267 96 Gun 3483 | 4 82 12 318 44 . 76 210 170 48 . 156 100 120 24 116 172 81 145 229 71 57 139 93 . 180 117 207 45 104 267 96 Cannon . | . . . . . . . . . . . . . . . . . . . . . . . . . . . . . . . . Launcher 45 | . . . . 4 . . 1 2 . . . 3 . . . . 3 4 10 12 . . 6 . . . . . . . . Special . | . . . . . . . . . . . . . . . . . . . . . . . . . . . . . . . . Kinetic 3338 | 4 82 12 318 44 . 76 128 109 48 . 156 100 120 24 116 172 81 145 229 71 57 139 93 . 180 117 207 45 104 265 96 Thermal . | . . . . . . . . . . . . . . . . . . . . . . . . . . . . . . . . Explosive 45 | . . . . 4 . . 1 2 . . . 3 . . . . 3 4 10 12 . . 6 . . . . . . . . Electromagnetic 145 | . . . . . . . 82 61 . . . . . . . . . . . . . . . . . . . . . 2 . Robot Hit Streak 44 | 3 9 2 13 3 . 5 12 19 20 . 15 16 30 5 10 13 15 14 28 7 12 16 13 . 15 15 18 12 21 44 18 Robot Miss Streak 15 | . 3 10 15 6 . 8 9 3 2 . 4 5 2 2 3 4 2 4 3 3 1 4 2 . 4 2 4 3 5 6 4 Penetration Max 2 | . . . . . . . . . . . . . 1 . 1 1 1 1 1 1 . 1 1 . 1 2 1 1 1 2 . Secondary Targets 81 | . 3 1 5 . . 4 4 . . . 2 . 2 1 3 3 3 2 12 . . 4 4 . 6 2 6 1 3 7 3 Max Gunslinging Chain 2 | . 1 1 1 . . 2 1 . . . 1 . 1 1 1 1 2 1 2 . . 2 2 . 1 1 1 1 2 1 1 Shots Hit Robots 2205 | 3 50 4 158 24 . 42 133 113 30 . 105 74 99 14 67 103 44 83 160 47 25 72 67 5 122 58 140 30 60 197 76 Core Hits 1128 | 1 24 4 83 6 . 23 59 65 11 . 41 32 34 5 27 42 26 36 121 27 25 37 43 4 47 33 61 25 38 106 42 Critical Kills 62 | . 2 1 . . . 1 . 1 . . . . . . 2 9 4 3 5 1 . 1 1 . 5 3 6 1 3 10 3 Critical Parts Destroyed 73 | 1 . . 1 . . 1 . . . . 3 . 1 1 2 6 1 6 12 2 2 4 5 . 5 . 5 1 . 9 5 Critical Strikes 144 | 1 2 1 1 . . 2 . 2 . . 3 . 1 1 4 16 5 9 18 3 2 6 7 . 10 3 11 2 3 22 9 Destroy 142 | 1 2 1 1 . . 2 . 1 . . 3 . 1 1 4 16 5 9 18 3 2 6 6 . 10 3 11 2 3 22 9 Corrupt 1 | . . . . . . . . 1 . . . . . . . . . . . . . . . . . . . . . . . Impale 1 | . . . . . . . . . . . . . . . . . . . . . . . 1 . . . . . . . . Melee Attacks 219 | . . . . . . . . 2 . . 16 2 . . 1 37 4 2 3 1 14 1 12 5 . 16 23 21 20 28 11 Impact . | . . . . . . . . . . . . . . . . . . . . . . . . . . . . . . . . Slashing 67 | . . . . . . . . 2 . . 16 2 . . 1 37 4 2 3 . . . . . . . . . . . . Piercing 152 | . . . . . . . . . . . . . . . . . . . . 1 14 1 12 5 . 16 23 21 20 28 11 Sneak Attacks 8 | . . . . . . . . . . . 1 . . . . 2 . . . . 2 . 1 . . . . 1 . . 1 Combat Hostiles . | . . . . . . . . . . . . . . . . . . . . . . . . . . . . . . . . Follow-up Attacks . | . . . . . . . . . . . . . . . . . . . . . . . . . . . . . . . . Damage Inflicted 56705 | 41 718 44 3029 391 . 655 2793 3330 557 . 1745 1645 1833 329 1760 2660 1252 2296 6308 1469 1225 1750 2178 502 2812 1595 3362 1091 1859 5524 1952 Guns 48777 | 41 553 42 3028 377 . 647 2460 2133 557 . 1689 1257 1833 329 1707 2133 1029 2073 4492 959 491 1750 1295 . 2812 1553 3324 988 1859 5524 1842 Cannons . | . . . . . . . . . . . . . . . . . . . . . . . . . . . . . . . . Explosions 5782 | . 156 . . . . . 324 1186 . . . 382 . . . . 223 223 1816 510 512 . 450 . . . . . . . . Melee 1899 | . . . . . . . . . . . 56 . . . . 492 . . . . 203 . 433 502 . . . 103 . . 110 Ramming 247 | . 9 2 1 14 . 8 9 11 . . . 6 . . 53 35 . . . . 19 . . . . 42 38 . . . . Kinetic 47008 | 41 553 42 3028 377 . 647 1609 1277 557 . 1689 1257 1833 329 1707 2133 1029 2073 4492 959 491 1750 1295 . 2812 1553 3324 988 1859 5462 1842 Thermal 1801 | . 156 . . . . . 95 1161 . . . . . . . . . . . . 389 . . . . . . . . . . Explosive 3858 | . . . . . . . 229 25 . . . 382 . . . . 223 223 1816 510 . . 450 . . . . . . . . Electromagnetic 1892 | . . . . . . . 851 856 . . . . . . . . . . . . 123 . . . . . . . . 62 . Impact . | . . . . . . . . . . . . . . . . . . . . . . . . . . . . . . . . Slashing 548 | . . . . . . . . . . . 56 . . . . 492 . . . . . . . . . . . . . . . Piercing 1351 | . . . . . . . . . . . . . . . . . . . . . 203 . 433 502 . . . 103 . . 110 Highest Corruption 7 | . . . 1 1 1 1 . . . . 2 2 . . 5 2 . . 7 7 1 1 . . . 2 . . . 5 . Average Corruption 2 | . . . 1 1 1 1 . . . . 1 1 . . 2 1 . . 6 7 1 1 . . . 2 . . . 3 . Corruption Purged 7 | . . . . . . . . . . . . 2 . . . 4 . . . . . 1 . . . . . . . . . Corruption Blocked . | . . . . . . . . . . . . . . . . . . . . . . . . . . . . . . . . Effects 74 | . . . 8 4 . 4 . . . . 8 1 . . 1 2 . . 16 23 1 5 . . . 1 . . . . . Message Errors 26 | . . . 1 1 . 1 . . . . 5 . . . . 1 . . 5 10 1 1 . . . . . . . . . Matter Fused 13 | . . . 1 . . 1 . . . . . 1 . . . 1 . . 2 6 . 1 . . . . . . . . . Heat Flow Errors 6 | . . . 1 . . . . . . . . . . . 1 . . . 2 2 . . . . . . . . . . . Energy Discharges 7 | . . . . 1 . 1 . . . . . . . . . . . . 2 1 . 2 . . . . . . . . . Parts Rejected 2 | . . . 1 . . 1 . . . . . . . . . . . . . . . . . . . . . . . . . Parts Fused 2 | . . . . . . . . . . . 1 . . . . . . . . . . 1 . . . . . . . . . Data Loss (minor) 11 | . . . 3 1 . . . . . . 1 . . . . . . . 3 2 . . . . . 1 . . . . . Data Loss (major) 3 | . . . 1 . . . . . . . . . . . . . . . 1 1 . . . . . . . . . . . Alerts 2 | . . . . 1 . . . . . . 1 . . . . . . . . . . . . . . . . . . . . Weapon Failures 2 | . . . . . . . . . . . . . . . . . . . 1 1 . . . . . . . . . . . Overload Shots . | . . . . . . . . . . . . . . . . . . . . . . . . . . . . . . . . Overflow Damage 650 | . 48 . . . . . 41 117 . . 16 8 . . . 4 8 . 60 62 132 . 97 . . 4 5 48 . . . Projectiles . | . . . . . . . . . . . . . . . . . . . . . . . . . . . . . . . . Explosions 476 | . 48 . . . . . 41 117 . . . 8 . . . . 8 . 60 62 132 . . . . . . . . . . Melee 174 | . . . . . . . . . . . 16 . . . . 4 . . . . . . 97 . . 4 5 48 . . . Knockbacks 2 | . . . . . . . . . . . . . . . 1 . . . . . . . . . . 1 . . . . . Impact 2 | . . . . . . . . . . . . . . . 1 . . . . . . . . . . 1 . . . . . Kinetic . | . . . . . . . . . . . . . . . . . . . . . . . . . . . . . . . . Secondary . | . . . . . . . . . . . . . . . . . . . . . . . . . . . . . . . . Self-Inflicted Damage 271 | . 47 . . . . . 37 39 . . . . . . . . . . . 148 . . . . . . . . . . . Shots 7 | . 1 . . . . . 1 1 . . . . . . . . . . . 4 . . . . . . . . . . . Rammed . | . . . . . . . . . . . . . . . . . . . . . . . . . . . . . . . . Targets Rammed 22 | . 1 1 2 3 . 2 1 1 . . . 1 . . 2 3 . . . . 1 . . . . 2 2 . . . . Kicked 22 | . 1 1 2 3 . 2 1 1 . . . 1 . . 2 3 . . . . 1 . . . . 2 2 . . . . Crushed . | . . . . . . . . . . . . . . . . . . . . . . . . . . . . . . . . Highest Temperature 465 | . 30 36 340 465 . 55 295 195 84 . 198 198 99 64 235 255 99 154 196 266 182 423 416 . 59 265 52 40 . . 48 Average Temperature 74 | . 11 14 83 238 . 18 73 69 30 . 86 81 37 32 68 70 37 41 68 77 63 170 141 . 35 66 21 24 . . 21 Received Heat Transfer 2003 | . 51 . 207 102 . 63 279 297 . . 144 90 63 18 129 36 33 27 30 14 . 23 12 . 23 . 79 16 12 243 12 Effects 6 | . . . . 1 . . . . . . . . . . . . . . . . . 2 3 . . . . . . . . Energy Bleed 3 | . . . . 1 . . . . . . . . . . . . . . . . . 2 . . . . . . . . . Short Circuit 1 | . . . . . . . . . . . . . . . . . . . . . . . 1 . . . . . . . . Damage (major) 2 | . . . . . . . . . . . . . . . . . . . . . . . 2 . . . . . . . . Siege Activations . | . . . . . . . . . . . . . . . . . . . . . . . . . . . . . . . . Martial Activations . | . . . . . . . . . . . . . . . . . . . . . . . . . . . . . . . . Shielding Activations . | . . . . . . . . . . . . . . . . . . . . . . . . . . . . . . . . Robots Disrupted . | . . . . . . . . . . . . . . . . . . . . . . . . . . . . . . . . Combat Hostiles . | . . . . . . . . . . . . . . . . . . . . . . . . . . . . . . . . Robots Corrupted 5 | . . . . . . . . 4 . . . . . . . . . . . . . . . . . 1 . . . . . Combat Hostiles 3 | . . . . . . . . 3 . . . . . . . . . . . . . . . . . . . . . . . Parts Fried 11 | . . . . . . . 2 2 . . . . 2 . . . . . 1 . . . . . . 4 . . . . . Impact Corruptions 2 | . . . . . . . . . . . . . . . . . . . . . . . . . . 1 1 . . . . Robots Melted . | . . . . . . . . . . . . . . . . . . . . . . . . . . . . . . . . Combat Hostiles . | . . . . . . . . . . . . . . . . . . . . . . . . . . . . . . . . Parts Melted 1 | . . . . . . . . 1 . . . . . . . . . . . . . . . . . . . . . . . Heat Transferred 1800 | . 100 . . . . . 50 1350 . . . . . . . . . . . . 300 . . . . . . . . . . Parts Sabotaged . | . . . . . . . . . . . . . . . . . . . . . . . . . . . . . . . . Parts Stolen . | . . . . . . . . . . . . . . . . . . . . . . . . . . . . . . . . Parts Stripped . | . . . . . . . . . . . . . . . . . . . . . . . . . . . . . . . . Power Chain Reactions 7 | . . . . . . . 1 6 . . . . . . . . . . . . . . . . . . . . . . . Alert | -11 -10 -10 -9 -9 -9 -8 -8 -8 -8 -8 -6 -6 -6 -6 -6 -5 -5 -5 -5 -4 -4 -4 -4 -4 -3 -3 -3 -2 -2 -2 -1 ------- Run | Yrd Mat Min Mat Min Exi Min Mat Sto Rec Scr Fac Ext Cet Arc Hub Fac Upp Upp War Pro Fac Upp Upp Zhi Pro Res Tes Res Qua Frg Acc Maximum Alert Level 4 | . 1 . 2 . . . 2 2 . . 1 1 . 1 3 2 . . . . 1 . . . . . 4 2 1 2 . Low Security (%) 59 | 100 91 100 59 100 . 100 46 21 100 . 61 88 100 81 24 1 . . . . 77 . . . . 100 64 . 27 54 100 Level 1 21 | . 8 . 9 . . . 37 23 . . 38 11 . 18 6 60 . . . . 22 . . . . . 2 . 72 34 . Level 2 15 | . . . 30 . . . 15 54 . . . . . . 22 37 . . . . . . . . . . 4 100 . 10 . Level 3 2 | . . . . . . . . . . . . . . . 45 . . . . . . . . . . . 11 . . . . Level 4 1 | . . . . . . . . . . . . . . . . . . . . . . . . . . . 16 . . . . Level 5 . | . . . . . . . . . . . . . . . . . . . . . . . . . . . . . . . . High Security . | . . . . . . . . . . . . . . . . . . . . . . . . . . . . . . . . Max Security . | . . . . . . . . . . . . . . . . . . . . . . . . . . . . . . . . Peak Influence 1140 | 5 239 60 621 162 . 105 558 590 95 . 249 235 147 228 1028 474 . . . . 300 . . . . 158 1140 655 376 491 162 Initial 617 | . 3 . . 162 . . 15 156 55 . . 102 94 42 44 474 . . . . 300 . . . . 59 49 617 346 178 107 Average 210 | 1 101 4 233 98 . 46 215 364 22 . 134 101 42 161 555 329 . . . . 124 . . . . 78 334 604 228 226 73 Influence Increases 17130 | 5 483 75 1249 82 . 305 994 992 210 . 812 616 382 196 1275 608 318 780 934 245 824 305 443 15 605 436 1593 428 676 857 387 Destroy 0b10 Robot/C 8580 | . 220 60 800 40 . 240 580 540 60 . 260 320 220 80 440 280 260 260 620 200 140 280 340 . 380 220 660 120 300 440 220 Destroy 0b10 Robot/NC 610 | 5 30 5 70 . . . 40 60 20 . 15 10 10 . 20 50 5 20 20 10 25 . 10 15 5 30 55 20 5 25 30 Destroy Leader 1544 | . 60 10 220 10 . 50 152 188 . . 60 60 10 . 94 84 30 20 . 20 44 20 20 . 40 48 76 52 30 110 36 Allied During Kill 1098 | . . . . 3 . . . 8 . . 19 133 117 80 394 . 8 . 144 . . 5 28 . . . 128 5 . . 26 Trap Triggered on 0b10 40 | . . . . . . . . . . . . . . . . . . . . . . . . . . . . . 40 . . Successful Hack 732 | . 34 . 31 . . . 40 9 10 . 42 10 14 . 18 44 . . . . 44 . . . . 51 96 72 103 96 18 Select Force Hacks 210 | . 60 . 30 . . . . . 120 . . . . . . . . . . . . . . . . . . . . . . Disable Machine 795 | . 60 . 45 . . 15 30 45 . . . . . 30 105 60 . . . . 165 . . . . . 105 . 75 60 . Anti-Garrison Action 550 | . . . . . . . . . . . 400 . . . 150 . . . . . . . . . . . . . . . . Destroy Structure 1171 | . 19 . 8 29 . . 17 52 . . 16 8 11 6 24 90 . . . . 106 . . . . 42 458 69 48 111 57 Advance Influence 300 | . . . . . . . . . . . . . . . . . . . . . 300 . . . . . . . . . . Partial Spotted 15 | . . . . . . . . . . . . . . . . . . . . . . . . . . . 15 . . . . Lose Combat Pursuer 1485 | . . . 45 . . . 135 90 . . . 75 . . 30 . 15 480 150 15 . . 45 . 180 45 . 90 75 15 . Influence Decreases 17082 | . 488 75 831 474 26 264 665 1218 354 . 601 658 444 175 434 1167 630 246 964 847 638 491 318 140 517 435 584 909 975 996 518 Entered New Map 4073 | . 2 . . 256 26 . 26 214 89 . . 109 75 65 84 495 152 19 632 602 . 69 . 125 . 29 40 481 271 140 72 Time Decay 10280 | . 486 75 531 198 . 264 489 534 265 . 438 292 209 110 290 622 478 227 232 245 459 402 318 15 517 406 404 368 404 556 446 Lost Part 10 | . . . . . . . . . . . . . . . . 10 . . . . . . . . . . . . . . . Lost Ally 769 | . . . . 20 . . . 20 . . 80 40 160 . 60 40 . . 100 . 29 20 . . . . 140 60 . . . Purge Threat 1950 | . . . 300 . . . 150 450 . . 83 217 . . . . . . . . 150 . . . . . . . 300 300 . Squads Dispatched 85 | . 2 . 6 . . . 5 4 . . 8 4 1 . 7 7 . 1 . . 5 . . . . 6 11 4 5 7 2 Investigation 19 | . 2 . 4 . . . 2 . . . 3 1 1 . 2 . . . . . . . . . . 2 1 . . 1 . Extermination 29 | . . . . . . . . . . . 3 . . . 1 3 . . . . 4 . . . . 1 4 3 4 4 2 Reinforcement 23 | . . . 2 . . . 1 2 . . 2 3 . . 1 2 . . . . 1 . . . . 3 3 . 1 2 . Assault 8 | . . . . . . . . 2 . . . . . . 2 2 . 1 . . . . . . . . . 1 . . . Garrison 6 | . . . . . . . 2 . . . . . . . 1 . . . . . . . . . . . 3 . . . . Intercept . | . . . . . . . . . . . . . . . . . . . . . . . . . . . . . . . . Searches Triggered . | . . . . . . . . . . . . . . . . . . . . . . . . . . . . . . . . Construction Impeded 5 | . . . . . . . . 1 . . . 1 . . . 1 . . . . . . . . . . 1 . . 1 . Haulers Reinforced 4 | . . . . . . . . . . . . . . . 1 . . . . . 1 . . . . 1 1 . . . . Active Scanning Responses . | . . . . . . . . . . . . . . . . . . . . . . . . . . . . . . . . Cargo Convoy Interrupts . | . . . . . . . . . . . . . . . . . . . . . . . . . . . . . . . . Stealth | -11 -10 -10 -9 -9 -9 -8 -8 -8 -8 -8 -6 -6 -6 -6 -6 -5 -5 -5 -5 -4 -4 -4 -4 -4 -3 -3 -3 -2 -2 -2 -1 --------- Run | Yrd Mat Min Mat Min Exi Min Mat Sto Rec Scr Fac Ext Cet Arc Hub Fac Upp Upp War Pro Fac Upp Upp Zhi Pro Res Tes Res Qua Frg Acc Distress Signals 39 | . 1 . 7 1 . . 2 2 . . . 6 2 . 4 1 . . . . . . . . . 3 . . 4 4 2 Communications Jammed . | . . . . . . . . . . . . . . . . . . . . . . . . . . . . . . . . Distress Signals . | . . . . . . . . . . . . . . . . . . . . . . . . . . . . . . . . Times Spotted 653 | . 17 4 50 3 . 12 50 37 1 . 17 17 14 5 33 20 12 32 107 11 6 13 16 . 25 15 36 21 20 43 16 Peak Tracking Total 18 | . 5 3 5 2 . 4 5 8 1 . 3 7 5 2 7 6 3 7 18 3 2 5 5 . 4 5 6 7 9 7 4 Tactical Retreats 56 | . . . 2 . . . 4 4 . . . 4 . . 2 . 1 11 5 1 . . 1 . 4 2 . 3 4 5 3 Traps | -11 -10 -10 -9 -9 -9 -8 -8 -8 -8 -8 -6 -6 -6 -6 -6 -5 -5 -5 -5 -4 -4 -4 -4 -4 -3 -3 -3 -2 -2 -2 -1 ------- Run | Yrd Mat Min Mat Min Exi Min Mat Sto Rec Scr Fac Ext Cet Arc Hub Fac Upp Upp War Pro Fac Upp Upp Zhi Pro Res Tes Res Qua Frg Acc Traps Triggered 11 | . 1 . 2 . . . 1 . . . 1 2 . . 1 1 . . . . . . . . . 1 1 . . . . Indirectly . | . . . . . . . . . . . . . . . . . . . . . . . . . . . . . . . . Trap Hack Attempts . | . . . . . . . . . . . . . . . . . . . . . . . . . . . . . . . . Triggered . | . . . . . . . . . . . . . . . . . . . . . . . . . . . . . . . . Disarmed 4 | . . . . . . . . . . . . . . . . . . . . . . . . . . . 4 . . . . Reprogrammed 6 | . . . . . . . . . . . . . . . . . . . . . . . . . . . . . 6 . . Reused 15 | . . . . . . . . . . . . . . . . . . 5 2 . . . 4 . . . . . 4 . . Traps Extracted 3 | . . . . . . . . . . . . . . . . . . 3 . . . . . . . . . . . . . Installed 16 | . . . . . . . . . . . . . . . . . . 6 2 . . . 8 . . . . . . . . Triggered 15 | . . . . . . . . . . . . . . . . . . 5 2 . . . 4 . . . . . 4 . . Most Traps Carried 6 | . . . . . . . . . . . . . . . . . . 6 2 . . . 4 . . . . . . . . Objects Rigged 9 | . . . . . . . . . . . . . . . . . . . . . 9 . . . . . . . . . . Exploded 4 | . . . . . . . . . . . . . . . . . . . . . 4 . . . . . . . . . . Machines | -11 -10 -10 -9 -9 -9 -8 -8 -8 -8 -8 -6 -6 -6 -6 -6 -5 -5 -5 -5 -4 -4 -4 -4 -4 -3 -3 -3 -2 -2 -2 -1 ---------- Run | Yrd Mat Min Mat Min Exi Min Mat Sto Rec Scr Fac Ext Cet Arc Hub Fac Upp Upp War Pro Fac Upp Upp Zhi Pro Res Tes Res Qua Frg Acc Machines Disabled 65 | . 4 . 3 . . 1 2 3 . . . . . 2 8 4 . 1 2 . 11 2 4 . 2 . 7 . 5 4 . Max in Single Turn 4 | . 4 . 1 . . 1 1 1 . . . . . 1 1 1 . 1 1 . 3 1 3 . 1 . 1 . 1 1 . Garrison Access 6 | . . . . . . . . 1 . . 2 . . . 1 2 . . . . . . . . . . . . . . . Network Hub 1 | . . . . . . . . . . . . . . . 1 . . . . . . . . . . . . . . . . Energy Cycler 2 | . . . . . . . . . . . . 2 . . . . . . . . . . . . . . . . . . . Machines Repaired . | . . . . . . . . . . . . . . . . . . . . . . . . . . . . . . . . Machines Dismantled . | . . . . . . . . . . . . . . . . . . . . . . . . . . . . . . . . Machines Sabotaged . | . . . . . . . . . . . . . . . . . . . . . . . . . . . . . . . . Overloaded Fab Kills . | . . . . . . . . . . . . . . . . . . . . . . . . . . . . . . . . Hacking | -11 -10 -10 -9 -9 -9 -8 -8 -8 -8 -8 -6 -6 -6 -6 -6 -5 -5 -5 -5 -4 -4 -4 -4 -4 -3 -3 -3 -2 -2 -2 -1 --------- Run | Yrd Mat Min Mat Min Exi Min Mat Sto Rec Scr Fac Ext Cet Arc Hub Fac Upp Upp War Pro Fac Upp Upp Zhi Pro Res Tes Res Qua Frg Acc Machines Accessed 146 | . 10 . 7 . . . 13 10 9 3 13 6 3 1 8 12 1 . . . 7 1 1 4 1 4 8 5 10 8 1 Terminals 106 | . 8 . 6 . . . 10 9 5 . 9 6 3 . 7 5 . . . . 5 . . . 1 1 7 5 10 8 1 Fabricators 10 | . . . . . . . . . . . 2 . . . . 4 . . . . 2 . . . . 1 1 . . . . Repair Stations 2 | . . . . . . . 1 . . . . . . . . . . . . . . . . . . 1 . . . . . Recycling Units 10 | . 2 . 1 . . . 1 . 4 . . . . . . 1 . . . . . . . . . 1 . . . . . Scanalyzers 1 | . . . . . . . 1 . . . . . . . . . . . . . . . . . . . . . . . . Garrison Access 6 | . . . . . . . . 1 . . 2 . . . 1 2 . . . . . . . . . . . . . . . Total Hacks 464 | . 27 . 26 . . . 38 17 19 20 30 16 8 2 20 31 1 . . . 40 1 1 17 6 26 37 12 36 32 1 Successful 286 | . 16 . 15 . . . 20 8 12 20 15 6 3 2 7 15 1 . . . 32 1 1 17 6 16 19 7 25 21 1 Failed 177 | . 10 . 11 . . . 18 9 7 . 15 10 5 . 13 16 . . . . 8 . . . . 10 18 5 11 11 . Catastrophic 24 | . 1 . . . . . 1 2 . . 2 2 2 . 2 3 . . . . . . . . . . 2 2 2 3 . Database Lockouts 1 | . 1 . . . . . . . . . . . . . . . . . . . . . . . . . . . . . . Manual 245 | . 23 . 13 . . . 23 11 12 . 10 11 1 . 16 23 . . 1 . 25 . . . . 21 10 5 21 19 . Terminals 366 | . 23 . 25 . . . 34 16 15 . 22 16 8 . 18 16 . . . . 35 . . . 6 18 33 12 36 32 1 Fabricators 30 | . . . . . . . . . . . 6 . . . . 12 . . . . 5 . . . . 3 4 . . . . Repair Stations 4 | . . . . . . . 2 . . . . . . . . . . . . . . . . . . 2 . . . . . Recycling Units 14 | . 4 . 1 . . . 1 . 4 . . . . . . 1 . . . . . . . . . 3 . . . . . Scanalyzers 1 | . . . . . . . 1 . . . . . . . . . . . . . . . . . . . . . . . . Garrison Access 7 | . . . . . . . . 1 . . 2 . . . 2 2 . . . . . . . . . . . . . . . Terminal Hacks 164 | . 4 . 12 . . . 12 6 3 20 9 3 3 2 2 3 1 . . . 10 1 1 17 6 6 11 5 14 12 1 Record 31 | . . . . . . . . . . 16 . . 2 2 . . . . . . . . . 5 6 . . . . . . Part Schematic 6 | . . . . . . . . . 1 . . . . . . . . . . . . . . 4 . . 1 . . . . Robot Analysis 20 | . 1 . 2 . . . 4 . . 4 . . . . . . . . . . . . . 4 . 2 1 1 1 . . Prototype ID Bank 19 | . 2 . 2 . . . 3 . 1 . . . . . . . . . . . 1 . . 4 . . 1 . 3 2 . Open Door 10 | . . . . . . . . 3 . . 1 . 1 . . . 1 . . . . 1 1 . . . . 1 . . 1 Level Access Points 3 | . . . . . . . . . . . . . . . . . . . . . 1 . . . . . . . 1 1 . Branch Access Points 8 | . . . 1 . . . 1 . . . . . . . . 1 . . . . 1 . . . . 1 . 1 1 1 . Emergency Access Points 3 | . . . 1 . . . . . . . . . . . 1 . . . . . . . . . . . 1 . . . . Terminal Index 4 | . . . . . . . . . . . . . . . . . . . . . 1 . . . . 1 . 1 1 . . Alert Level 9 | . . . 2 . . . . . . . 1 . . . 1 . . . . . . . . . . . 2 . 2 1 . Unreport Threat 15 | . . . 2 . . . 1 3 . . 1 3 . . . . . . . . 1 . . . . . . . 2 2 . Locate Traps 20 | . . . . . . . 3 . . . 5 . . . . 2 . . . . 1 . . . . 1 1 1 2 4 . Disarm Traps 1 | . . . . . . . . . . . . . . . . . . . . . . . . . . . 1 . . . . Reprogram Traps 1 | . . . . . . . . . . . . . . . . . . . . . . . . . . . . . 1 . . Patrol Status 1 | . . . . . . . . . . . . . . . . . . . . . . . . . . . . . . 1 . Transport Status 2 | . . . . . . . . . . . 1 . . . . . . . . . 1 . . . . . . . . . . Recall Extermination 1 | . . . . . . . . . . . . . . . . . . . . . . . . . . . 1 . . . . Recall Reinforcements 1 | . . . . . . . . . . . . . . . . . . . . . . . . . . . 1 . . . . Hauler Manifests 6 | . 1 . 1 . . . . . . . . . . . . . . . . . 2 . . . . 1 1 . . . . Registered Components 1 | . . . . . . . . . 1 . . . . . . . . . . . . . . . . . . . . . . Zone Layout 2 | . . . 1 . . . . . . . . . . . . . . . . . 1 . . . . . . . . . . Fabricator Hacks 7 | . . . . . . . . . . . 1 . . . . 2 . . . . 2 . . . . 1 1 . . . . Network Status 4 | . . . . . . . . . . . . . . . . 1 . . . . 2 . . . . . 1 . . . . Build 3 | . . . . . . . . . . . 1 . . . . 1 . . . . . . . . . 1 . . . . . Repair Station Hacks 4 | . . . . . . . 2 . . . . . . . . . . . . . . . . . . 2 . . . . . Scan Component 2 | . . . . . . . 1 . . . . . . . . . . . . . . . . . . 1 . . . . . Repair 2 | . . . . . . . 1 . . . . . . . . . . . . . . . . . . 1 . . . . . Recycling Unit Hacks 2 | . . . . . . . 1 . . . . . . . . 1 . . . . . . . . . . . . . . . Report Inventory 1 | . . . . . . . . . . . . . . . . 1 . . . . . . . . . . . . . . . Retrieve Components 1 | . . . . . . . 1 . . . . . . . . . . . . . . . . . . . . . . . . Scanalyzer 1 | . . . . . . . 1 . . . . . . . . . . . . . . . . . . . . . . . . Insert Component 1 | . . . . . . . 1 . . . . . . . . . . . . . . . . . . . . . . . . Garrison Access Hacks 3 | . . . . . . . . 1 . . . . . . . 2 . . . . . . . . . . . . . . . Seal Access 3 | . . . . . . . . 1 . . . . . . . 2 . . . . . . . . . . . . . . . Unauthorized Hacks 105 | . 12 . 3 . . . 4 1 9 . 5 3 . . 5 7 . . . . 20 . . . . 7 7 2 11 9 . Terminals 81 | . 10 . 2 . . . 4 1 5 . 2 3 . . 5 2 . . . . 17 . . . . 4 4 2 11 9 . Track 15 | . 1 . . . . . 1 . . . . . . . 2 . . . . . 4 . . . . 1 . . 3 3 . Assimilate 11 | . . . . . . . 1 . . . . . . . . . . . . . 3 . . . . 1 1 . 3 2 . Botnet 32 | . 3 . 2 . . . 2 1 2 . 2 2 . . 2 2 . . . . 3 . . . . 1 3 1 3 3 . Detonate 2 | . . . . . . . . . . . . . . . . . . . . . 2 . . . . . . . . . . Disrupt 5 | . . . . . . . . . . . . . . . . . . . . . 4 . . . . . . 1 . . . Operators 7 | . . . . . . . . . . . . 1 . . 1 . . . . . 1 . . . . 1 . . 2 1 . Skim 9 | . 6 . . . . . . . 3 . . . . . . . . . . . . . . . . . . . . . . Fabricators 14 | . . . . . . . . . . . 1 . . . . 5 . . . . 3 . . . . 2 3 . . . . Report 1 | . . . . . . . . . . . . . . . . . . . . . . . . . . . 1 . . . . Prioritize 1 | . . . . . . . . . . . . . . . . . . . . . . . . . . 1 . . . . . Liberate 9 | . . . . . . . . . . . 1 . . . . 4 . . . . 2 . . . . 1 1 . . . . Haulers 3 | . . . . . . . . . . . . . . . . 1 . . . . 1 . . . . . 1 . . . . Repair Stations . | . . . . . . . . . . . . . . . . . . . . . . . . . . . . . . . . Recycling Units 8 | . 2 . 1 . . . . . 4 . . . . . . . . . . . . . . . . 1 . . . . . Recyclers 1 | . . . . . . . . . . . . . . . . . . . . . . . . . . 1 . . . . . Tunnel 7 | . 2 . 1 . . . . . 4 . . . . . . . . . . . . . . . . . . . . . . Scanalyzers . | . . . . . . . . . . . . . . . . . . . . . . . . . . . . . . . . Garrison Access 2 | . . . . . . . . . . . 2 . . . . . . . . . . . . . . . . . . . . Jam 2 | . . . . . . . . . . . 2 . . . . . . . . . . . . . . . . . . . . Data Cores Recovered 4 | . . . . . . . . 1 . . . . . . 1 1 . . . . . . . . . . . . . 1 . Used 1 | . . . . . . . . . . . . . . . . 1 . . . . . . . . . . . . . . . Hacking Detections 103 | . 5 . 6 . . . 11 7 3 . 10 6 4 . 8 7 . . . . 4 . . . . 4 7 4 9 7 1 Full Trace Events 11 | . . . 1 . . . 2 . 1 . 1 1 1 . 2 . . . . . . . . . . . 1 . . 1 . Feedback Events 1 | . . . 1 . . . . . . . . . . . . . . . . . . . . . . . . . . . . Corruption 1 | . . . 1 . . . . . . . . . . . . . . . . . . . . . . . . . . . . Feedback Blocked . | . . . . . . . . . . . . . . . . . . . . . . . . . . . . . . . . Robot Schematics Acquired . | . . . . . . . . . . . . . . . . . . . . . . . . . . . . . . . . Robots Built . | . . . . . . . . . . . . . . . . . . . . . . . . . . . . . . . . Authchips . | . . . . . . . . . . . . . . . . . . . . . . . . . . . . . . . . Time . | . . . . . . . . . . . . . . . . . . . . . . . . . . . . . . . . Total Robot Build Rating . | . . . . . . . . . . . . . . . . . . . . . . . . . . . . . . . . Part Schematics Acquired 6 | . . . . . . . . . 1 . . . . . . . . . . . . . . 4 . . 1 . . . . Parts Built 6 | . . . . . . . . . . . 2 . . . . 2 . . . . . . . . . 2 . . . . . Authchips . | . . . . . . . . . . . . . . . . . . . . . . . . . . . . . . . . Time 244 | . . . . . . . . . . . 58 . . . . 117 . . . . . . . . . 69 . . . . . Total Part Build Rating 46 | . . . . . . . . . . . 14 . . . . 14 . . . . . . . . . 18 . . . . . Parts Repaired 2 | . . . . . . . 1 . . . . . . . . . . . . . . . . . . 1 . . . . . Time 140 | . . . . . . . 16 . . . . . . . . . . . . . . . . . . 124 . . . . . Parts Recycled . | . . . . . . . . . . . . . . . . . . . . . . . . . . . . . . . . Recycled Matter . | . . . . . . . . . . . . . . . . . . . . . . . . . . . . . . . . Retrieved Matter . | . . . . . . . . . . . . . . . . . . . . . . . . . . . . . . . . Retrieved Components 9 | . . . . . . . 9 . . . . . . . . . . . . . . . . . . . . . . . . Parts Scanalyzed . | . . . . . . . . . . . . . . . . . . . . . . . . . . . . . . . . Part Schematics Acquired . | . . . . . . . . . . . . . . . . . . . . . . . . . . . . . . . . Parts Damaged . | . . . . . . . . . . . . . . . . . . . . . . . . . . . . . . . . Bothacking | -11 -10 -10 -9 -9 -9 -8 -8 -8 -8 -8 -6 -6 -6 -6 -6 -5 -5 -5 -5 -4 -4 -4 -4 -4 -3 -3 -3 -2 -2 -2 -1 ------------ Run | Yrd Mat Min Mat Min Exi Min Mat Sto Rec Scr Fac Ext Cet Arc Hub Fac Upp Upp War Pro Fac Upp Upp Zhi Pro Res Tes Res Qua Frg Acc Used RIF Installer . | . . . . . . . . . . . . . . . . . . . . . . . . . . . . . . . . Robots Hacked . | . . . . . . . . . . . . . . . . . . . . . . . . . . . . . . . . Non-combat . | . . . . . . . . . . . . . . . . . . . . . . . . . . . . . . . . Combat . | . . . . . . . . . . . . . . . . . . . . . . . . . . . . . . . . Robot Hacks Applied . | . . . . . . . . . . . . . . . . . . . . . . . . . . . . . . . . Relay Couplers Released 1 | . . . . . . . . . . . . . . . 1 . . . . . . . . . . . . . . . . Machine Destruction 1 | . . . . . . . . . . . . . . . 1 . . . . . . . . . . . . . . . . Fabnet Peak Effective % . | . . . . . . . . . . . . . . . . . . . . . . . . . . . . . . . . Robots Rewired 20 | . . . . . . . . . 8 . . 3 . . . . . 1 5 . . 2 . . . . 1 . . . . Allies Hacked 1 | . . . . . . . . . . . . . . . . . . . . . 1 . . . . . . . . . . Hacks Repelled . | . . . . . . . . . . . . . . . . . . . . . . . . . . . . . . . . Allies | -11 -10 -10 -9 -9 -9 -8 -8 -8 -8 -8 -6 -6 -6 -6 -6 -5 -5 -5 -5 -4 -4 -4 -4 -4 -3 -3 -3 -2 -2 -2 -1 -------- Run | Yrd Mat Min Mat Min Exi Min Mat Sto Rec Scr Fac Ext Cet Arc Hub Fac Upp Upp War Pro Fac Upp Upp Zhi Pro Res Tes Res Qua Frg Acc Total Allies 59 | . . . . 3 . . . 2 8 . 3 10 5 . . 2 1 1 5 . 4 2 . . . . 10 . . . 3 Largest Group 8 | . . . . 2 2 . . 2 8 8 8 7 7 4 4 2 1 1 5 . 3 2 1 1 1 . 4 3 . . 3 Highest-Rated Group 480 | . . . . 41 41 . . 62 128 128 149 324 480 377 377 98 138 29 227 . 141 96 43 43 43 . 265 141 . . 379 Highest-Rated Ally 152 | . . . . 31 31 . . 31 27 27 29 152 152 96 96 49 138 29 49 . 47 49 43 43 43 . 124 47 . . 135 Total Orders 9 | . . . . . . . . . . 1 1 . . . 1 . . . 2 . . . 2 . 2 . . . . . . STAY 6 | . . . . . . . . . . 1 1 . . . 1 . . . 1 . . . 1 . 1 . . . . . . FOLLOW 3 | . . . . . . . . . . . . . . . . . . . 1 . . . 1 . 1 . . . . . . Ally Attacks 330 | . . . . 5 . . . 8 . . 26 42 53 12 40 9 1 . 51 . 6 4 5 . 3 . 38 12 . . 15 Total Damage 11875 | . . . . 65 . . . 147 . . 453 613 1381 327 1311 310 279 . 1801 . 164 119 43 . 78 . 3484 258 . . 1042 Kills 62 | . . . . 3 . . . 1 . . 1 6 6 2 12 1 3 . 4 . . . 1 . . . 17 1 . . 4 Allies Corrupted 1 | . . . . . . . . . . . . . . . 1 . . . . . . . . . . . . . . . . Allies Melted 5 | . . . . 1 . . . . . . . . . . . 2 . . 2 . . . . . . . . . . . . Intel | -11 -10 -10 -9 -9 -9 -8 -8 -8 -8 -8 -6 -6 -6 -6 -6 -5 -5 -5 -5 -4 -4 -4 -4 -4 -3 -3 -3 -2 -2 -2 -1 ------- Run | Yrd Mat Min Mat Min Exi Min Mat Sto Rec Scr Fac Ext Cet Arc Hub Fac Upp Upp War Pro Fac Upp Upp Zhi Pro Res Tes Res Qua Frg Acc Active Infowar (turns) 35636 | 8 1293 939 1956 412 53 628 2841 1509 982 2192 1520 759 583 232 731 2102 1220 2445 1349 771 1324 994 2017 391 1084 880 1184 605 472 1298 862 Terrain 22007 | . . . . . . . . . . 342 1520 759 583 232 731 2102 1220 2445 1349 771 1324 730 2017 391 1084 880 1182 605 472 1152 116 Structural 1880 | . . . . . . . . . . 573 1307 . . . . . . . . . . . . . . . . . . . . Seismic 12425 | 8 1293 939 1956 412 53 628 2841 1509 982 1804 . . . . . . . . . . . . . . . . . . . . . Jamming 791 | . . . . . . . . . . . . . . . . . . 3 . . . 264 409 115 . . . . . . . ECM 1066 | . . . . . . . . . . . . . . . . . . . . . . . . . . . 2 . . 318 746 Robot Analysis Total 20 | . 1 . 2 . . . 4 . . 4 . . . . . . . . . . . . . 4 . 2 1 1 1 . . Derelict Logs Recovered 13 | . . 2 . 2 . . . . . . . . . . . . 2 1 . 2 . 2 2 . . . . . . . . Drone Launches . | . . . . . . . . . . . . . . . . . . . . . . . . . . . . . . . . Drone Recoveries . | . . . . . . . . . . . . . . . . . . . . . . . . . . . . . . . . Exploration | -11 -10 -10 -9 -9 -9 -8 -8 -8 -8 -8 -6 -6 -6 -6 -6 -5 -5 -5 -5 -4 -4 -4 -4 -4 -3 -3 -3 -2 -2 -2 -1 ------------- Run | Yrd Mat Min Mat Min Exi Min Mat Sto Rec Scr Fac Ext Cet Arc Hub Fac Upp Upp War Pro Fac Upp Upp Zhi Pro Res Tes Res Qua Frg Acc Turns Passed 39449 | 79 1293 939 1956 412 53 634 2841 1509 982 2465 1520 759 583 232 731 2102 1220 2445 1349 771 1324 994 2017 391 2401 1029 1861 855 960 1637 1105 Spaces Moved 25481 | 58 683 712 1142 277 45 452 1489 901 666 2185 921 403 273 144 404 1368 962 1958 831 610 1075 708 1400 284 1681 538 959 558 641 894 259 Core 570 | 9 1 . . . . . . . . 560 . . . . . . . . . . . . . . . . . . . . . Treads . | . . . . . . . . . . . . . . . . . . . . . . . . . . . . . . . . Legs 24911 | 49 682 712 1142 277 45 452 1489 901 666 1625 921 403 273 144 404 1368 962 1958 831 610 1075 708 1400 284 1681 538 959 558 641 894 259 Wheels . | . . . . . . . . . . . . . . . . . . . . . . . . . . . . . . . . Hover . | . . . . . . . . . . . . . . . . . . . . . . . . . . . . . . . . Flight . | . . . . . . . . . . . . . . . . . . . . . . . . . . . . . . . . Fastest Speed 50 | 50 120 120 120 120 120 120 120 120 120 50 120 120 120 120 120 100 100 105 100 100 100 100 100 107 107 107 107 107 107 105 105 Average Speed 110 | 109 120 120 121 120 120 120 120 120 120 102 120 120 120 120 120 111 102 105 103 100 100 100 117 107 107 107 107 107 110 107 105 Slowest Speed 300 | 120 200 120 190 120 120 120 120 120 120 300 120 120 120 120 120 120 105 105 105 100 100 100 173 107 107 107 107 107 113 245 105 Overloaded Moves . | . . . . . . . . . . . . . . . . . . . . . . . . . . . . . . . . Propulsion Burnouts . | . . . . . . . . . . . . . . . . . . . . . . . . . . . . . . . . Robots Hopped . | . . . . . . . . . . . . . . . . . . . . . . . . . . . . . . . . Potential Cave-ins 10 | . . . . . . . . . . . . . . . . . . . . . . . . . . . . . 7 3 . Cave-ins Triggered 3 | . . . . . . . . . . . . . . . . 1 . . . . . . . . . . . . 1 1 . Teleports 1 | . . . . . . . . . . . . . . . . . . . . . . . . 1 . . . . . . . Exploration Rate (%) 66 | 4 100 98 84 55 10 94 86 97 99 90 25 76 88 85 46 39 96 97 62 75 26 82 97 60 96 17 92 19 75 31 11 Regions Visited 31 Branch Regions 22 Pre-discovered Areas 17 | . 2 . 1 . . . . . 4 3 . . . . . . . . . 2 . 1 . 3 1 . . . . . . Known Exits Taken 27 | . 1 1 1 . . 1 1 . 1 1 1 1 1 1 1 1 1 1 1 1 1 1 1 1 1 1 1 1 1 1 . Unknown Exits Taken 4 | 1 . . . 1 1 . . 1 . . . . . . . . . . . . . . . . . . . . . . . Scrap Searched 30 | . . 2 . 1 . 1 . . . 5 . . . . . . 3 2 . 5 . 2 6 . 3 . . . . . . Spaces Dug 302 | . . . . . . . 14 25 . . 15 1 . . 2 34 11 3 13 15 25 5 21 . . 16 21 20 21 30 10 Terrain Destroyed 911 | . 17 . . 47 . . 16 49 . . 15 17 1 4 18 57 38 56 79 94 64 40 69 . 59 22 49 20 26 44 10 Melee 174 | . . . . . . . . . . . 15 1 . . 1 27 4 2 3 1 10 1 3 . . 16 19 20 14 27 10 Projectile 351 | . . . . . . . . . . . . . 1 4 17 30 28 35 21 12 29 39 24 . 58 6 26 . 12 9 . AOE 372 | . 17 . . 47 . . 16 49 . . . 16 . . . . 6 19 55 80 25 . 42 . . . . . . . . Terrain Rammed . | . . . . . . . . . . . . . . . . . . . . . . . . . . . . . . . . Walls Destroyed . | . . . . . . . . . . . . . . . . . . . . . . . . . . . . . . . . Machines Disabled . | . . . . . . . . . . . . . . . . . . . . . . . . . . . . . . . . Actions | -11 -10 -10 -9 -9 -9 -8 -8 -8 -8 -8 -6 -6 -6 -6 -6 -5 -5 -5 -5 -4 -4 -4 -4 -4 -3 -3 -3 -2 -2 -2 -1 --------- Run | Yrd Mat Min Mat Min Exi Min Mat Sto Rec Scr Fac Ext Cet Arc Hub Fac Upp Upp War Pro Fac Upp Upp Zhi Pro Res Tes Res Qua Frg Acc Total 34607 | 66 1092 788 1513 323 44 495 2406 1234 828 2402 1249 633 479 197 603 1825 1152 2280 1219 725 1273 936 1704 363 2204 910 1661 758 816 1402 1027 Wait 6671 | 1 354 61 233 23 . 8 811 220 96 188 238 151 140 15 127 314 115 210 213 44 138 127 220 54 436 286 574 143 100 322 709 Move 25451 | 57 682 711 1141 276 44 451 1488 900 665 2184 920 402 272 143 404 1368 961 1957 830 609 1074 707 1399 283 1680 537 958 557 640 893 258 Hop . | . . . . . . . . . . . . . . . . . . . . . . . . . . . . . . . . Pick Up 61 | . 1 1 2 . . . 2 . . . 2 . 2 3 5 4 2 6 7 1 1 4 4 1 7 2 2 . . . 2 Fast Attach 100 | 6 6 . 5 1 . 2 7 2 1 15 3 3 5 . . 6 1 . 2 1 3 1 1 9 . 6 3 1 2 8 . Attach 2 | . . . . . . . . . . . . . . . . 1 . 1 . . . . . . . . . . . . . Detach . | . . . . . . . . . . . . . . . . . . . . . . . . . . . . . . . . Swap 242 | . 5 . 8 2 . 1 9 15 . . 14 6 3 . 3 21 10 7 17 10 7 8 13 2 12 20 11 11 1 16 10 Drop 150 | . 5 1 9 . . 2 9 5 . 15 6 4 6 4 5 7 2 6 9 3 2 5 6 8 7 5 5 1 2 10 1 Fire 941 | 2 30 4 83 15 . 19 56 46 12 . 39 28 30 6 29 43 25 44 67 30 19 31 27 . 43 25 54 12 28 70 24 Melee 219 | . . . . . . . . 2 . . 16 2 . . 1 37 4 2 3 1 14 1 12 5 . 16 23 21 20 28 11 Ram . | . . . . . . . . . . . . . . . . . . . . . . . . . . . . . . . . Kick 20 | . 1 1 2 3 . 2 1 1 . . . 1 . . 1 2 . . . . 1 . . . . 2 2 . . . . Crush . | . . . . . . . . . . . . . . . . . . . . . . . . . . . . . . . . Escape Stasis 3 | . . . . . . . . . . . . 3 . . . . . . . . . . . . . . . . . . . Rewire 86 | . . . . . . . . . 49 . . 9 . . . . . 4 16 . . 6 . . . . 2 . . . . Trap 16 | . . . . . . . . . . . . . . . . . . 6 2 . . . 8 . . . . . . . . Miscellaneous 645 | . 8 9 30 3 . 10 23 43 5 . 11 24 21 26 28 22 32 37 53 26 14 46 14 1 19 11 27 12 23 55 12 Route ------- -11/Scrapyard -10/Materials (discovered 5 exits: *Mat x3 / *Min / *Sub) -10/Mines (discovered 3 exits: *Mat x2 / Sub) -9/Materials (discovered 4 exits: *Mat x2 / *Min x2) -9/Mines (discovered 3 exits: *Mat x2 / [*Exi]) -9/Exiles -8/Mines (discovered 2 exits: *Mat x2) -8/Materials (discovered 5 exits: [*Fac x3] / *Sto x2) -8/Storage (discovered 2 exits: [*Fac] / *Rec) -8/Recycling (discovered 2 exits: *Fac / *Scr) -8/Scraptown (discovered 2 exits: *Fac x2) -6/Factory (discovered 5 exits: *Fac x2 / *Low / *Ext x2) -6/Extension (discovered 3 exits: *Fac x2 / *Cet) -6/Cetus (discovered 3 exits: *Fac x2 / *Arc) -6/Archives (discovered 3 exits: *Fac / *Hub x2) -6/Hub_04(d) (discovered 2 exits: *Fac x2) -5/Factory (discovered 4 exits: Fac x2 / *Upp x2) -5/Upper Caves (discovered 2 exits: *Upp / *Fac) -5/Upper Caves (discovered 2 exits: *Fac / *War) -5/Warlord -4/Proximity Caves -4/Factory (discovered 7 exits: *Res x4 / *Upp x2 / Arm) -4/Upper Caves -4/Upper Caves (discovered 2 exits: *Res / *Zhi) -4/Zhirov -3/Proximity Caves -3/Research (discovered 2 exits: *Tes x2) -3/Testing -2/Research (discovered 4 exits: *Acc x2 / *Qua x2) -2/Quarantine (discovered 3 exits: *Acc / *Sec / *Frg) -2/Protoforge -1/Access (discovered 2 exits: *Sur / Com) To Epsilon Eridani History --------- Turn | Location | Event 1 | -11/Scrapyard | Upgraded with Propulsion slot (x1) 1 | -11/Scrapyard | Upgraded with Utility slot (x1) 1 | -11/Scrapyard | Upgraded with Weapon slot (x1) 3 | -11/Scrapyard | Discovered new exit (range 16) 80 | -11/Scrapyard | Entered Materials 148 | -10/Materials | Upgraded with Weapon slot (x1) 158 | -10/Materials | Discovered new exit (range 14) 364 | -10/Materials | Reached level 2 407 | -10/Materials | Discovered new exit (range 17) 437 | -10/Materials | Build established: Gunner 918 | -10/Materials | Upgraded with Utility slot (x1) 943 | -10/Materials | Discovered new exit (range 18) 990 | -10/Materials | Central database locked down 994 | -10/Materials | Learned 2 Mines zone layouts 1066 | -10/Materials | Learned Storage trap positions 1113 | -10/Materials | Discovered new exit (range 18) 1129 | -10/Materials | Identified exit to Subcaves 1182 | -10/Materials | Learned Storage trap positions 1225 | -10/Materials | Identified exit to Mines 1279 | -10/Materials | Learned 2 Mines zone layouts 1342 | -10/Materials | Learned 2 Materials zone layouts 1373 | -10/Materials | Entered Mines 1440 | -10/Mines | Met a Derelict bent on vengeance 1577 | -10/Mines | Discovered new exit (range 12) 1919 | -10/Mines | Identified exit to Materials 1932 | -10/Mines | Learned Materials emergency access door positions 2012 | -10/Mines | Received a Rocket Launcher from a helpful Derelict 2312 | -10/Mines | Entered Materials 2313 | -9/Materials | Identified exit to Mines 2314 | -9/Materials | Reached level 3 2480 | -9/Materials | Reached level 4 2665 | -9/Materials | Upgraded with Weapon slot (x1) 2735 | -9/Materials | Upgraded with Propulsion slot (x1) 2923 | -9/Materials | Discovered exit to Mines (range 9) 3110 | -9/Materials | Reached level 5 3571 | -9/Materials | Reached level 6 3819 | -9/Materials | Reached level 7 3877 | -9/Materials | Discovered new exit (range 5) 4130 | -9/Materials | Discovered new exit (range 15) 4244 | -9/Materials | Upgraded with Utility slot (x1) 4268 | -9/Materials | Entered Mines 4271 | -9/Mines | Received a Mining Laser from a helpful Derelict 4289 | -9/Mines | Deemed a non-threat by the Exiles lab entrance 4368 | -9/Mines | Reached level 8 4406 | -9/Mines | Upgraded with Utility slot (x1) 4436 | -9/Mines | Learned Materials garrison access intel 4491 | -9/Mines | Assembled infested the area 4518 | -9/Mines | Identified exit to Materials 4567 | -9/Mines | Discovered exit to Materials (range 7) 4666 | -9/Mines | Discovered new exit (range 5) 4680 | -9/Mines | Entered Exiles 4680 | -9/Exiles | Accompanied by 2 allies 4696 | -9/Exiles | Discovered new exit (range 16) 4710 | -9/Exiles | Led the pair of lost Derelicts to a safe place 4712 | -9/Exiles | Met 8R-AWN 4733 | -9/Exiles | Entered Mines 4975 | -8/Mines | Discovered exit to Materials (range 13) 5040 | -8/Mines | Reached level 9 5357 | -8/Mines | Discovered exit to Materials (range 6) 5367 | -8/Mines | Entered Materials 5368 | -8/Materials | Loaded intel: 1 garrison access location 5369 | -8/Materials | Reached level 10 5391 | -8/Materials | Identified exit to Storage 5938 | -8/Materials | Discovered new exit (range 10) 6215 | -8/Materials | Reached level 11 6287 | -8/Materials | Discovered new exit (range 17) 6378 | -8/Materials | Garrison activated, responded to threat 6393 | -8/Materials | Core integrity fell below 50% 6648 | -8/Materials | Discovered new exit (range 4) 6702 | -8/Materials | Core integrity fell below 20% 6804 | -8/Materials | Garrison activated, responded to threat 7203 | -8/Materials | Reached level 12 7917 | -8/Materials | Upgraded with Power slot (x1) 7917 | -8/Materials | Upgraded with Utility slot (x1) 8160 | -8/Materials | Repaired Med. Armor Plating 8208 | -8/Materials | Entered Storage 8209 | -8/Storage | Loaded intel: 21 trap records 8427 | -8/Storage | Met a pair of Derelict thieves 8503 | -8/Storage | Reached level 13 9292 | -8/Storage | Discovered new exit (range 18) 9713 | -8/Storage | Used back door to open Recycling access 9713 | -8/Storage | Discovered new exit (range 5) 9717 | -8/Storage | Entered Recycling 9718 | -8/Recycling | Joined Warlord attack on 0b10 via Recycling 9828 | -8/Recycling | Discovered new exit (range 16) 10026 | -8/Recycling | Upgraded with Utility slot (x1) 10509 | -8/Recycling | Reached level 14 10616 | -8/Recycling | Scanned before Scraplab entrance 10633 | -8/Recycling | Entered Scraplab 10642 | -8/Recycling | Discovered new exit (range 3) 10643 | -8/Recycling | Identified exit to Scraptown 10693 | -8/Recycling | Build established: Commander-Gunner 10699 | -8/Recycling | Entered Scraptown 10699 | -8/Scraptown | Accompanied by 8 allies 10973 | -8/Scraptown | Discovered new exit (range 13) 11025 | -8/Scraptown | Heard Great Nut preacher, LISTEN AND RECITE! 11030 | -8/Scraptown | Visited Awakened 11049 | -8/Scraptown | Visited TADAMA 11129 | -8/Scraptown | Visited Shadow of the Wyrm 11285 | -8/Scraptown | Visited CPS Storage 11311 | -8/Scraptown | Visited Cave Peace 11347 | -8/Scraptown | Visited UFD Registry 11347 | -8/Scraptown | Registered with UFD as "Nullshaft" 11392 | -8/Scraptown | Visited Cartography Club 11433 | -8/Scraptown | Visited Scrapoid Research Area 11469 | -8/Scraptown | Visited Research Penetration Think Tank 11577 | -8/Scraptown | Discovered new exit (range 3) 11582 | -8/Scraptown | Identified exit to Factory 11714 | -8/Scraptown | Visited Analyses Database 11734 | -8/Scraptown | Visited Scrap Suit Storage 11757 | -8/Scraptown | Visited Derelict Rescue Squad 11976 | -8/Scraptown | Visited Observation Area 12053 | -8/Scraptown | Visited Infowarlord's Domain 12081 | -8/Scraptown | Visited Curators Association 12394 | -8/Scraptown | Learned 16 Materials zone layouts 12394 | -8/Scraptown | Learned 24 Factory zone layouts 12394 | -8/Scraptown | Learned 4 Mines zone layouts 12394 | -8/Scraptown | Learned 4 Recycling zone layouts 12394 | -8/Scraptown | Learned 8 Lower Caves zone layouts 12394 | -8/Scraptown | Learned Factory emergency access door positions 12394 | -8/Scraptown | Learned location of 2 exits from Lower Caves 12394 | -8/Scraptown | Learned location of 3 exits from Proximity Caves 12579 | -8/Scraptown | Found Deep Structural Scanner 12600 | -8/Scraptown | Build established: Commander-Mutant 12822 | -8/Scraptown | Found Exp. Terrain Scanner 13052 | -8/Scraptown | Met Optimus 13052 | -8/Scraptown | Accepted into 0bPrime 13109 | -8/Scraptown | Build established: Commander-Skirmisher 13164 | -8/Scraptown | Entered Factory 13164 | -6/Factory | Accompanied by 8 allies 13165 | -6/Factory | Identified exit to Extension 13166 | -6/Factory | Identified exit to Factory 13166 | -6/Factory | Identified exit to Lower Caves 13166 | -6/Factory | Reached level 15 13484 | -6/Factory | Reached level 16 13764 | -6/Factory | Discovered exit to Factory (range 14) 13936 | -6/Factory | Reached level 17 14338 | -6/Factory | Core integrity fell below 50% 14494 | -6/Factory | Build established: Skirmisher 14569 | -6/Factory | Fabricated Adv. Reaction Control System? 14684 | -6/Factory | Entered Extension 14746 | -6/Extension | Upgraded with Utility slot (x1) 14786 | -6/Extension | Reached level 18 14949 | -6/Extension | Energy Cycler disabled 14949 | -6/Extension | Rescued a captive Derelict 14949 | -6/Extension | Rescued a captive Derelict 14949 | -6/Extension | Rescued a captive Derelict 14950 | -6/Extension | Rescued a captive Derelict 14950 | -6/Extension | Rescued a captive Derelict 14951 | -6/Extension | Rescued a captive Derelict 14952 | -6/Extension | Rescued a captive Derelict 14952 | -6/Extension | Rescued a captive Derelict 14963 | -6/Extension | Rescued a captive Derelict 14971 | -6/Extension | Rescued a captive Derelict 15012 | -6/Extension | Allied Derelicts emerged from ambush trap array 15080 | -6/Extension | Discovered exit to Factory (range 27) 15085 | -6/Extension | Spotted B-75 Beast 15124 | -6/Extension | Destroyed B-75 Beast 15140 | -6/Extension | Rescued A7 15141 | -6/Extension | Build established: Scavenger-Skirmisher 15380 | -6/Extension | Discovered new exit (range 21) 15385 | -6/Extension | Discovered exit to Factory (range 20) 15407 | -6/Extension | Identified exit to Cetus 15443 | -6/Extension | Entered Cetus 15443 | -6/Cetus | Accompanied by 7 allies (A7) 15448 | -6/Cetus | Acquired a Cetus Manufacturing Module code from A7 15463 | -6/Cetus | Spotted Cetus Guard 15463 | -6/Cetus | Spotted Cetus Guard 15466 | -6/Cetus | Spotted Cetus Guard 15466 | -6/Cetus | Spotted Cetus Guard 15473 | -6/Cetus | Reached level 19 15473 | -6/Cetus | Destroyed Cetus Guard 15474 | -6/Cetus | Allies destroyed Cetus Guard 15485 | -6/Cetus | Destroyed Cetus Guard 15495 | -6/Cetus | Destroyed Cetus Guard 15507 | -6/Cetus | Lost 6 allies 15593 | -6/Cetus | Discovered exit to Factory (range 17) 15692 | -6/Cetus | Started Cetus Manufacturing Module 15702 | -6/Cetus | Escorted A7 to Cetus Mainframe 15717 | -6/Cetus | Manufactured an Enhanced Grunt 15725 | -6/Cetus | Discovered new exit (range 24) 15731 | -6/Cetus | Extracted ID and sensor layout for unrecognized location from A7's data core 15742 | -6/Cetus | Manufactured an Enhanced Grunt 15767 | -6/Cetus | Manufactured an Enhanced Grunt 15792 | -6/Cetus | Manufactured an Enhanced Grunt 15817 | -6/Cetus | Manufactured an Enhanced Grunt 15893 | -6/Cetus | Discovered exit to Factory (range 25) 15894 | -6/Cetus | Spotted Cetus Guard 15894 | -6/Cetus | Spotted Cetus Guard 15897 | -6/Cetus | Spotted Cetus Guard 15897 | -6/Cetus | Spotted Cetus Guard 15905 | -6/Cetus | Allies destroyed Cetus Guard 15915 | -6/Cetus | Destroyed Cetus Guard 15917 | -6/Cetus | Allies destroyed Cetus Guard 15920 | -6/Cetus | Destroyed Cetus Guard 15940 | -6/Cetus | Met Revision 17 15947 | -6/Cetus | Upgraded with Utility slot (x1) 15969 | -6/Cetus | Found Prototype Device 15969 | -6/Cetus | Identified Exp. Thermal Shield 16001 | -6/Cetus | Identified exit to Archives 16026 | -6/Cetus | Entered Archives 16026 | -6/Archives | Accompanied by 4 allies 16035 | -6/Archives | Discovered new exit (range 25) 16042 | -6/Archives | Discovered exit to Factory (range 22) 16055 | -6/Archives | Discovered new exit (range 28) 16216 | -6/Archives | Unable to access archive contents 16233 | -6/Archives | Identified exit to Hub_04(d) 16258 | -6/Archives | Entered Hub_04(d) 16258 | -6/Hub_04(d) | Accompanied by 4 allies 16260 | -6/Hub_04(d) | Reached level 20 16433 | -6/Hub_04(d) | Garrison activated, responded to threat 16471 | -6/Hub_04(d) | Discovered exit to Factory (range 24) 16609 | -6/Hub_04(d) | Discovered exit to Factory (range 25) 16861 | -6/Hub_04(d) | Network Hub disabled 16888 | -6/Hub_04(d) | Reached level 21 16979 | -6/Hub_04(d) | Spotted Lightning 16980 | -6/Hub_04(d) | Spotted Lightning 16982 | -6/Hub_04(d) | Spotted Lightning 16989 | -6/Hub_04(d) | Entered Factory 17047 | -5/Factory | Upgraded with Utility slot (x1) 17138 | -5/Factory | Discovered new exit (range 27) 17961 | -5/Factory | Upgraded with Utility slot (x1) 17970 | -5/Factory | Identified exit to Upper Caves 18007 | -5/Factory | Discovered new exit (range 29) 18120 | -5/Factory | Fabricated Adv. VSS Leg? 18233 | -5/Factory | Core integrity fell below 50% 18471 | -5/Factory | Core integrity fell below 20% 18537 | -5/Factory | Reached level 22 18789 | -5/Factory | First assault squad dispatched 18825 | -5/Factory | Crushed by falling debris 19091 | -5/Factory | Entered Upper Caves 19267 | -5/Upper Caves | Learned Factory emergency access door positions 19269 | -5/Upper Caves | Identified exit to Upper Caves 19544 | -5/Upper Caves | Build established: Scavenger-Assassin 19742 | -5/Upper Caves | Upgraded with Propulsion slot (x1) 19804 | -5/Upper Caves | 99-TNT showed up to help 19806 | -5/Upper Caves | 99-TNT revealed a hidden path 19812 | -5/Upper Caves | Identified exit to Factory 19995 | -5/Upper Caves | Build established: Scavenger-Skirmisher 20066 | -5/Upper Caves | Attracted the attention of an 0b10 checkpoint 20311 | -5/Upper Caves | Entered another Upper Caves area 20440 | -5/Upper Caves | Encountered a Warlord checkpoint 20943 | -5/Upper Caves | Discovered new exit (range 30) 21113 | -5/Upper Caves | Learned Factory emergency access door positions 21127 | -5/Upper Caves | Identified exit to Warlord 21794 | -5/Upper Caves | Attracted the attention of an 0b10 outpost 22236 | -5/Upper Caves | Discovered exit to Factory (range 28) 22344 | -5/Upper Caves | Reached level 23 22756 | -5/Upper Caves | Entered Warlord 22756 | -5/Warlord | Accompanied by 1 ally 22772 | -5/Warlord | Discovered new exit (range 22) 23130 | -5/Warlord | Rebuked by Warlord 23155 | -5/Warlord | Warlord's base attacked by MAIN.C 23394 | -5/Warlord | Spotted B-86 Titan 23424 | -5/Warlord | Spotted B-86 Titan 23459 | -5/Warlord | Warlord forces counterattacked 23501 | -5/Warlord | P-80 Master assimilated allied YB-R8U(d) 23531 | -5/Warlord | Spotted Executioner 23559 | -5/Warlord | Lost 7 allies 23600 | -5/Warlord | Spotted Striker 23603 | -5/Warlord | Spotted Executioner 23607 | -5/Warlord | Spotted Executioner 23611 | -5/Warlord | P-70 Sage assimilated allied 03-TJU(g) 23629 | -5/Warlord | Destroyed Executioner 23653 | -5/Warlord | Destroyed 11 combat bots 23655 | -5/Warlord | Spotted Striker 23656 | -5/Warlord | Spotted Striker 23656 | -5/Warlord | Spotted B-86 Titan 23656 | -5/Warlord | Spotted Executioner 23669 | -5/Warlord | Destroyed Striker 23725 | -5/Warlord | Lost 22 allies 23728 | -5/Warlord | Found Prototype Processor 23728 | -5/Warlord | Identified Exp. Targeting Computer 23731 | -5/Warlord | Found Prototype Processor 23731 | -5/Warlord | Identified Exp. Core Analyzer 23767 | -5/Warlord | Destroyed B-86 Titan 23799 | -5/Warlord | Spotted Striker 23800 | -5/Warlord | Spotted Striker 23809 | -5/Warlord | Allies destroyed Striker 23830 | -5/Warlord | Warlord base infiltrated, sounded retreat 23948 | -5/Warlord | Spotted B-86 Titan 23953 | -5/Warlord | Spotted Executioner 23960 | -5/Warlord | Destroyed Executioner 23963 | -5/Warlord | Destroyed B-86 Titan 24027 | -5/Warlord | Reached level 24 24028 | -5/Warlord | Spotted Striker 24069 | -5/Warlord | Spotted B-75 Beast 24070 | -5/Warlord | Spotted B-86 Titan 24070 | -5/Warlord | Spotted B-86 Titan 24092 | -5/Warlord | Identified exit to Proximity Caves 24105 | -5/Warlord | Entered Proximity Caves 24119 | -4/Proximity Caves | Lost 8 allies 24219 | -4/Proximity Caves | Spotter reported a threat 24305 | -4/Proximity Caves | Attracted the attention of an 0b10 checkpoint 24539 | -4/Proximity Caves | Spotter reported a threat 24649 | -4/Proximity Caves | Spotted B-86 Titan 24823 | -4/Proximity Caves | Acquired the password to a Derelict Tinkerer's latest research 24876 | -4/Proximity Caves | Entered Factory 24878 | -4/Factory | Reached level 25 24954 | -4/Factory | Identified exit to Upper Caves 24954 | -4/Factory | Identified exit to Armory 25132 | -4/Factory | Identified exit to Research 25205 | -4/Factory | Build established: Scavenger-Assassin 25307 | -4/Factory | Upgraded with Weapon slot (x1) 26200 | -4/Factory | Entered Upper Caves 26308 | -4/Upper Caves | Attracted the attention of an 0b10 checkpoint 26371 | -4/Upper Caves | Attracted the attention of an 0b10 outpost 26771 | -4/Upper Caves | Discovered new exit (range 25) 26802 | -4/Upper Caves | Reached level 26 26924 | -4/Upper Caves | Build established: Scavenger-Skirmisher 26936 | -4/Upper Caves | Identified exit to Upper Caves 26946 | -4/Upper Caves | Upgraded with Utility slot (x1) 27008 | -4/Upper Caves | Spotted B-86 Titan 27066 | -4/Upper Caves | Learned 4 Research zone layouts 27194 | -4/Upper Caves | Entered another Upper Caves area 27194 | -4/Upper Caves | Accompanied by 1 ally 27272 | -4/Upper Caves | Discovered exit to Research (range 29) 27594 | -4/Upper Caves | Learned 8 Research zone layouts 27608 | -4/Upper Caves | Learned Research security intel 27700 | -4/Upper Caves | Discovered new exit (range 28) 27771 | -4/Upper Caves | Build established: Scavenger-Assassin 27776 | -4/Upper Caves | Identified exit to Zhirov 28142 | -4/Upper Caves | Attracted the attention of an 0b10 base 28405 | -4/Upper Caves | Build established: Scavenger-Skirmisher 28572 | -4/Upper Caves | Destroyed 7 combat bots 28789 | -4/Upper Caves | Found DCF Scrap (16 items) 29211 | -4/Upper Caves | Entered Zhirov 29211 | -4/Zhirov | Accompanied by 1 ally 29211 | -4/Zhirov | Discovered new exit (range 3) 29231 | -4/Zhirov | Met Zhirov 29250 | -4/Zhirov | Learned location of Command (-1) 29261 | -4/Zhirov | Zhirov requested help retrieving the SGEMP Prototype 29278 | -4/Zhirov | Found Alien Artifact 29278 | -4/Zhirov | Identified Integrated Dissipator 29278 | -4/Zhirov | Installed Integrated Dissipator, increased core heat dissipation (+20) 29417 | -4/Zhirov | Identified exit to Proximity Caves 29462 | -4/Zhirov | Build established: Scavenger-Assassin 29495 | -4/Zhirov | Found Alien Artifact 29495 | -4/Zhirov | Identified Transdimensional Reconstructor 29495 | -4/Zhirov | Warped through subspace 29602 | -4/Zhirov | Entered Proximity Caves 29602 | -3/Proximity Caves | Accompanied by 1 ally 29889 | -3/Proximity Caves | Reached level 27 30044 | -3/Proximity Caves | Attracted the attention of an 0b10 checkpoint 30278 | -3/Proximity Caves | Attracted the attention of an 0b10 base 30332 | -3/Proximity Caves | Build established: Scavenger-Gunner 30484 | -3/Proximity Caves | Learned Armory terminal intel 30484 | -3/Proximity Caves | Learned Research security intel 30484 | -3/Proximity Caves | Learned Factory trap positions 32003 | -3/Proximity Caves | Entered Research 32005 | -3/Research | Reached level 28 32151 | -3/Research | Upgraded with Utility slot (x1) 32184 | -3/Research | Identified exit to Testing 32203 | -3/Research | Revision forces began assault on 0b10 32277 | -3/Research | Met up with Revision 17++ 32399 | -3/Research | Build established: Scavenger-Assassin 32470 | -3/Research | Fabricated Quantum Reactor? 32486 | -3/Research | Found Prototype Processor 32486 | -3/Research | Identified Exp. Melee Analysis Suite 32508 | -3/Research | Repaired Broken Adv. KE Penetrator? 32542 | -3/Research | Upgraded with Utility slot (x1) 32703 | -3/Research | Research terminal network offline 32766 | -3/Research | Found Prototype Device 32766 | -3/Research | Identified Exp. Focal Shield 33032 | -3/Research | Entered Testing 33034 | -3/Testing | Reached level 29 33125 | -3/Testing | Build established: Scavenger-Skirmisher 33536 | -3/Testing | Found Prototype Hackware 33536 | -3/Testing | Identified Ghost Barrier 33725 | -3/Testing | Build established: Scavenger-Assassin 33791 | -3/Testing | Discovered new exit (range 30) 34213 | -3/Testing | Rewired PD-IZWL993HJ7 34381 | -3/Testing | Garrison activated, responded to threat 34469 | -3/Testing | Spotted Striker 34470 | -3/Testing | Spotted Striker 34515 | -3/Testing | Spotted Alpha 7 34516 | -3/Testing | Allies destroyed Striker 34526 | -3/Testing | Destroyed Striker 34540 | -3/Testing | Destroyed Alpha 7 34554 | -3/Testing | Found Prototype Ballistic Gun 34554 | -3/Testing | Identified Multirail 34581 | -3/Testing | Stole the SGEMP Prototype 34581 | -3/Testing | Reached level 30 34603 | -3/Testing | Found Prototype Device 34603 | -3/Testing | Identified Exp. ECM Suite 34746 | -3/Testing | Identified exit to Research 34893 | -3/Testing | Entered Research 34893 | -2/Research | Accompanied by 3 allies 34894 | -2/Research | Identified exit to Access 34894 | -2/Research | Identified exit to Quarantine 35338 | -2/Research | Reached level 31 35643 | -2/Research | First assault squad dispatched 35748 | -2/Research | Entered Quarantine 36365 | -2/Quarantine | Crushed by falling debris 36561 | -2/Quarantine | Reached level 32 36561 | -2/Quarantine | Scanned by Researcher 36611 | -2/Quarantine | Spotted Fortress 36698 | -2/Quarantine | Discovered new exit (range 6) 36698 | -2/Quarantine | Discovered new exit (range 6) 36703 | -2/Quarantine | Identified exit to Section 7 36707 | -2/Quarantine | Identified exit to Protoforge 36708 | -2/Quarantine | Entered Protoforge 36759 | -2/Protoforge | Spotted Hotshot 36849 | -2/Protoforge | Discovered exit to Access (range 30) 36963 | -2/Protoforge | Superfortress began startup sequence 37067 | -2/Protoforge | Found Prototype Energy Gun 37067 | -2/Protoforge | Identified Enh. Gamma Rifle 37095 | -2/Protoforge | Spotted Hotshot 37101 | -2/Protoforge | Destroyed Hotshot 37101 | -2/Protoforge | Destroyed Hotshot 37118 | -2/Protoforge | Spotted Hotshot 37123 | -2/Protoforge | Destroyed Hotshot 37226 | -2/Protoforge | Spotted Hotshot 37226 | -2/Protoforge | Spotted Hotshot 37229 | -2/Protoforge | Spotted Hotshot 37691 | -2/Protoforge | Spotted Hotshot 37709 | -2/Protoforge | Destroyed Hotshot 37711 | -2/Protoforge | Spotted Hotshot 37713 | -2/Protoforge | Spotted Hotshot 37723 | -2/Protoforge | Destroyed Hotshot 37723 | -2/Protoforge | Destroyed Hotshot 37918 | -2/Protoforge | Crushed by falling debris 38189 | -2/Protoforge | Found Prototype Storage 38189 | -2/Protoforge | Identified Cep. Chromion Battery 38216 | -2/Protoforge | Forge Plexus network access discovered 38325 | -2/Protoforge | Core integrity fell below 50% 38334 | -2/Protoforge | Core integrity fell below 20% 38345 | -2/Protoforge | Entered Access 38346 | -1/Access | Core integrity fell below 50% 38346 | -1/Access | Core integrity fell below 20% 38346 | -1/Access | Delivered the SGEMP Prototype to Zhirov 38346 | -1/Access | Zhirov transferred Access data 38346 | -1/Access | Reached level 33 38347 | -1/Access | Loaded intel: 114 machine locations 38347 | -1/Access | Loaded intel: 75 trap records 38347 | -1/Access | Identified exit to Surface 38347 | -1/Access | Discovered exit to Surface (range 118) 38347 | -1/Access | Identified exit to Command 38347 | -1/Access | Discovered exit to Command (range 201) 38347 | -1/Access | Reached level 34 38666 | -1/Access | Zhirov warped through subspace 39264 | -1/Access | Found Multirail 39359 | -1/Access | Spotted B-99 Colossus 39450 | *** | Escaped! Last Messages --------------- 39254_ H-88 Terminator destroyed. 39257_ K-01 Serf collects debris. 39258_ Acquired 92 matter. 39258_ Acquired 137 matter. 39260_ K-01 Serf collects debris. 39264_ Acquired Multirail. 39267_ K-01 Serf collects debris. 39381_ U-05 Engineer builds a Wall. 39408_ K-01 Serf cleans the Terminal. 39414_ W-44 Eye sends out distress signal. 39423_ Sneak attack on K-01 Serf. 39423_ K-01 Serf destroyed. 39424_ K-01 Serf collects debris. 39425_ Acquired 12 matter. 39427_ K-01 Serf collects debris. 39432_ Connecting with Terminal... >>Open(Door) Sealed Barrier opened. 39434_ K-01 Serf collects debris. 39436_ The Access Shell folds into the floor. Map ----- +----------------------------------------------------+ | ###################################### # # | | ####################### # # ## | | ####################### # ########## | | ####################### # ## | | ####################### + ## | | ####################### = # ## | | ####################### #^^## | | ###################################### ## | | ##################################### # | | ##################################### # | | # ########################### # [ | | # ########################### ######### | | # ############################ ####### | | + ############################ ####### | | # ############################ ####### | | # ############################ ####### | | # ############################ ####### | | # ############################ ####### | | ###################################### ####### | | ###################################### ####### | | ############################## #######hu########## | | ########## """" ########## | | ########## """" ########## | | ########## """" ########## | | %=[ """" ### | | *= """" "@ k### | | """" "" R ### | | """" ### | | ###### ### """" R ### " | | # ### """" """ """ ### """" | | # ### """" """T""" ### """"" | | ] # ####################### ####### ### """" | | [=%%%# ############################### ### """" | | ! %# ############################### ### " | | !=! # ########## ############### ### | | #####" ########## ############### ### | | + ############### ### | | # ############### ########## | | ######## | | ######## w | | #+##########+########### | | # ## ## | | # ## ## | | ###### # ## """ ## | | #### # ## ""T"" ## | | #### # ## "" "" ## | | #### # ## ## | | #### """"" # ## ## | | #### """"" # ## ## | | #### """"" # ########+#### | +----------------------------------------------------+ Best States ------------- Heat Dissipation 72 Coolant Potential 50 Energy Generation 45 Energy Capacity 1900 Matter Stores 300 Matter Capacity 300 Sight Range 18 Robot Scan Range 24 Terrain Scan Range 30 Terrain Scan Density 510 ECM Strength 3 Jamming Range 16 Corruption Containment 12 Armor Coverage 225 Resistance: KI 30 Resistance: TH 30 Point Defense Rating 160 Weapon Cycling 20 Evasion (%) 82 Targeting Accuracy 20 Core Analysis 8 Recoil Reduction 6 Salvage Targeting 2 Offensive Hacking 26 Trap Extractor Capacity 8 Item Schematics ----------------- Adv. Heat Sink | -8/Recycling | Hacked Assault Drone Bay | -4/Zhirov | Free Exp. Heat Sink | -4/Zhirov | Free Exp. Optical Array | -4/Zhirov | Free Imp. Arc Thrower | -4/Zhirov | Free Exp. Reaction Control System | -3/Testing | Hacked Robot Schematics ------------------ None Fabricated ------------ Adv. Reaction Control System | x2 | -6/Factory | Preloaded Adv. VSS Leg | x2 | -5/Factory | Preloaded Quantum Reactor | x2 | -3/Research | Preloaded Repaired ---------- Med. Armor Plating | 2% | -8/Materials Adv. KE Penetrator | 99% | -3/Research | Broken Alien Tech Used ----------------- Integrated Dissipator Transdimensional Reconstructor Achievements -------------- None Challenges ------------ None RPGLIKE | -11 -10 -10 -9 -9 -9 -8 -8 -8 -8 -8 -6 -6 -6 -6 -6 -5 -5 -5 -5 -4 -4 -4 -4 -4 -3 -3 -3 -2 -2 -2 -1 --------- Run | Yrd Mat Min Mat Min Exi Min Mat Sto Rec Scr Fac Ext Cet Arc Hub Fac Upp Upp War Pro Fac Upp Upp Zhi Pro Res Tes Res Qua Frg Acc Levels Raised 33 | . 1 . 5 1 . 1 3 1 1 . 3 1 1 . 2 1 . 1 1 . 1 1 . . 1 1 2 1 1 . 2 XP Earned 53098 | 3000 2020 850 7014 719 139 2025 4181 1939 641 210 5027 1990 1055 498 1722 1743 653 616 1505 1015 1348 649 532 152 1724 1801 1938 1504 1449 1281 2158 XP Spent 45230 | 2150 1600 . 3000 1400 . . 2700 60 2000 650 3000 2300 2600 . . 6740 1100 . . . 1400 3500 1000 . . 7900 1250 . . 880 . Upgrades 63 | 6 2 . 3 1 . . 3 2 1 5 13 1 1 . . 10 1 . . . 1 1 1 . . 2 1 . . 8 . Power Slot 1 | . . . . . . . 1 . . . . . . . . . . . . . . . . . . . . . . . . Propulsion Slot 3 | 1 . . 1 . . . . . . . . . . . . . 1 . . . . . . . . . . . . . . Utility Slot 13 | 1 1 . 1 1 . . 1 . 1 . . 1 1 . . 2 . . . . . 1 . . . 2 . . . . . Weapon Slot 4 | 1 1 . 1 . . . . . . . . . . . . . . . . . 1 . . . . . . . . . . Core Integrity 14 | . . . . . . . . 2 . . . . . . . 8 . . . . . . . . . . . . . 4 . Heat Dissipation 4 | . . . . . . . . . . . . . . . . . . . . . . . . . . . . . . 4 . Inventory Capacity 5 | 1 . . . . . . 1 . . . 1 . . . . . . . . . . . 1 . . . 1 . . . . Sight Range 2 | 2 . . . . . . . . . . . . . . . . . . . . . . . . . . . . . . . Sensor Range 12 | . . . . . . . . . . . 12 . . . . . . . . . . . . . . . . . . . . Terrain Scan Density 5 | . . . . . . . . . . 5 . . . . . . . . . . . . . . . . . . . . . Protomatter Created 5925 | . 41 17 212 23 . 102 247 367 101 . 127 100 171 138 101 138 237 289 806 112 101 306 164 83 497 162 154 129 245 485 270 Integrity Restored 13500 | . 117 162 607 69 . 207 489 930 109 . 252 540 436 587 515 501 711 791 1102 579 303 950 285 9 342 153 525 257 515 1199 258 Core 10340 | . 101 112 549 69 . 207 489 848 . . 252 540 165 359 248 501 711 430 964 579 303 427 97 . 273 106 386 59 463 844 258 Parts 3160 | . 16 50 58 . . . . 82 109 . . . 271 228 267 . . 361 138 . . 523 188 9 69 47 139 198 52 355 . Protomatter Decayed 5691 | . . . . 16 . . 12 55 213 . 106 324 52 20 198 155 18 10 1040 . 65 49 8 72 366 2393 252 141 72 13 41 Game ------ Seed EtherialFissionLegs Manual? 0 Play Time 07:13:10 Cumulative 992.2 hours Start 2025.05.09 @ 06:36:24 End 2025.05.10 @ 19:47:51 Sessions 25 Manual Loads 0 Difficulty Rogue Special Mode Winter2019/RPGLIKE Game No. 81 Rogue 21 Adventurer 46 Explorer 14 Win Type 0 Total 50 Types 27/4/10/1/1/2/0/3/2/0 Lore% 86 Gallery% 87 Achievement% 80 Wizard Run 0 Options --------- Layout 0 ASCII 0 Keyboard 0 Movement Mouse Keybinds 0 Fullscreen 2 Font 36/SmallcapsGlow++ Map View 76x50 Zoom Use 0% Tactical HUD 1 Map Filters NONE Filters NONE Steam 0 RUN: 4e4f5205-c745-4d00-93c5-5d7cb6ecce45